Workbook

Sheet Club
F1: Chuisnes | G1: B.O.C. | H1: Crécy | I1: Charpont | J1: Bonneval | K1: Luray | M1: Vichères | N1: Challet - Bailleau | P1: Cloyes | Q1: St G.M. | R1: Bonneval | S1: Yèvres | T1: St Eliph | U1: Blévy M | V1: Challet - B | W1: Cloyes | X1: Charpont | Y1: Chuisnes | Z1: Cheminots | AA1: Cheminots | AB1: B.O.C. | AC1: Ouarville | AD1: Luray | AE1: St G.M. | AF1: La Gauloise | AG1: Gas | AH1: TOTAL
B2: Club | C2: nom prénom | D2: concours nbs | E2: =NumCouleur(D2) ->  | F2: 2024-09-01 | G2: 2024-09-07 | H2: 2024-09-08 | I2: 2024-09-14 | J2: 2024-09-15 | K2: 21/09/2024 TRI | L2: 21/09/2024 DM | M2: 22/09/2024 QUA | N2: 28/09/2024 TRI | O2: 28/09/2024 DF | P2: 2024-09-29 | Q2: 2024-10-05 | R2: 2024-10-06 | S2: 2024-10-12 | T2: 2024-10-13 | U2: 2024-10-19 | V2: 2024-10-20 | W2: 2024-10-26 | X2: 2024-10-27 | Y2: 2024-11-02 | Z2: 2024-11-03 | AA2: 2024-11-09 | AB2: 2024-11-10 | AC2: 2024-11-16 | AD2: 2024-11-17 | AE2: 2024-11-23 | AF2: 2024-11-24 | AG2: 2024-11-30 | AH2: individuel
A3: 1 | B3: BLEVY MAILLEBOIS | C3: BIDARD Philippe | D3: =COUNTIF(F3:AG3,">1") -> 10 | E3: HVS | S3: ANNULÉ | T3: 12 | U3: 15 | V3: 10 | X3: 10 | Y3: 10 | Z3: 10 | AA3: 10 | AB3: 10 | AD3: 10 | AF3: 10 | AH3: =SUM(F3:AG3) -> 107 | AI3: 2
A4: 2 | B4: BLEVY MAILLEBOIS | C4: BOULAY Christophe | D4: 0 | E4: HAD | AH4: 0 | AI4: 2
A5: 3 | B5: BLEVY MAILLEBOIS | C5: BRETAGNE Fabien | D5: 1 | E5: HAS | U5: 10 | AH5: 10 | AI5: 2
A6: 4 | B6: BLEVY MAILLEBOIS | C6: BURSON Anthony | D6: 4 | E6: HAS | I6: 12 | Q6: 12 | U6: 10 | AD6: 12 | AH6: 46 | AI6: 2
A7: 5 | B7: BLEVY MAILLEBOIS | C7: DUFOSSE Anthony | D7: 2 | E7: HAS | U7: 10 | AA7: 10 | AH7: 20 | AI7: 2
A8: 6 | B8: BLEVY MAILLEBOIS | C8: FREMONT Benoît | D8: 19 | E8: HVS | F8: 22 | G8: 20 | H8: 16 | I8: 30 | K8: 10 | N8: 10 | Q8: 20 | T8: 15 | U8: 10 | V8: 10 | Y8: 30 | Z8: 12 | AA8: 20 | AB8: 10 | AC8: 15 | AD8: 10 | AE8: 15 | AF8: 10 | AG8: 10 | AH8: 295 | AI8: 2
A9: 7 | B9: BLEVY MAILLEBOIS | C9: FREMONT Denis | D9: 13 | E9: HVS | H9: 12 | I9: 10 | K9: 10 | N9: 10 | Q9: 16 | T9: 15 | X9: 10 | Y9: 10 | Z9: 10 | AA9: 10 | AD9: 15 | AE9: 10 | AG9: 20 | AH9: 158 | AI9: 2
A10: 8 | B10: BLEVY MAILLEBOIS | C10: FREMONT Stéphane | D10: 19 | E10: HAS | F10: 22 | G10: 20 | H10: 16 | I10: 30 | K10: 10 | N10: 10 | Q10: 20 | T10: 15 | U10: 10 | V10: 10 | Y10: 30 | Z10: 12 | AA10: 20 | AB10: 10 | AC10: 15 | AD10: 10 | AE10: 15 | AF10: 10 | AG10: 10 | AH10: 295 | AI10: 2
A11: 9 | B11: BLEVY MAILLEBOIS | C11: GAJAS Gaspard | D11: 0 | E11: HAS | AH11: 0 | AI11: 2
A12: 10 | B12: BLEVY MAILLEBOIS | C12: GAUTIER Laurent | D12: 8 | E12: HVS | T12: 10 | U12: 10 | V12: 10 | X12: 10 | Y12: 10 | AB12: 10 | AD12: 10 | AF12: 10 | AH12: 80 | AI12: 2
A13: 11 | B13: BLEVY MAILLEBOIS | C13: GILLOT Julien | D13: 4 | E13: HAS | I13: 12 | T13: 10 | U13: 10 | AD13: 12 | AH13: 44 | AI13: 2
A14: 12 | B14: BLEVY MAILLEBOIS | C14: GILLOT Moïse | D14: 12 | E14: HVS | H14: 12 | I14: 10 | K14: 10 | N14: 10 | Q14: 16 | T14: 15 | X14: 10 | Y14: 10 | Z14: 10 | AA14: 10 | AD14: 15 | AG14: 20 | AH14: 148 | AI14: 2
A15: 13 | B15: BLEVY MAILLEBOIS | C15: GLOTIN Julien | D15: 1 | E15: HAS | Q15: 12 | AH15: 12 | AI15: 2
A16: 14 | B16: BLEVY MAILLEBOIS | C16: GREVIN Kaëlig | D16: 1 | E16: HJS | Q16: 12 | AH16: 12 | AI16: 2
A17: 15 | B17: BLEVY MAILLEBOIS | C17: GREVIN Michel | D17: 16 | E17: HVS | G17: 10 | H17: 10 | I17: 10 | N17: 10 | Q17: 12 | T17: 10 | U17: 15 | V17: 10 | X17: 10 | Y17: 12 | Z17: 10 | AA17: 10 | AB17: 10 | AD17: 10 | AE17: 10 | AF17: 10 | AH17: 169 | AI17: 2
A18: 16 | B18: BLEVY MAILLEBOIS | C18: GUGGENBUHL Claude | D18: 6 | E18: HVS | I18: 10 | P18: 10 | U18: 10 | AA18: 10 | AE18: 10 | AF18: 10 | AH18: 60 | AI18: 2
A19: 17 | B19: BLEVY MAILLEBOIS | C19: HANDZICH Maryse | D19: 4 | E19: FVS | U19: 10 | V19: 10 | X19: 10 | Y19: 12 | AH19: 42 | AI19: 2
A20: 18 | B20: BLEVY MAILLEBOIS | C20: JURE Eric | D20: 7 | E20: HVS | N20: 10 | Q20: 16 | T20: 15 | X20: 10 | AD20: 15 | AE20: 15 | AG20: 20 | AH20: 101 | AI20: 2
A21: 19 | B21: BLEVY MAILLEBOIS | C21: LARHANTEC Louis | D21: 3 | E21: HVS | G21: 10 | N21: 10 | U21: 30 | AH21: 50 | AI21: 2
A22: 20 | B22: BLEVY MAILLEBOIS | C22: LAUVRAY Raymonde | D22: 5 | E22: FVD | U22: 10 | V22: 10 | X22: 10 | Y22: 10 | AD22: 10 | AH22: 50 | AI22: 2
A23: 21 | B23: BLEVY MAILLEBOIS | C23: LEMAIRE Raphael | D23: 7 | E23: HAS | H23: 10 | I23: 10 | N23: 10 | T23: 10 | X23: 10 | AA23: 10 | AE23: 10 | AH23: 70 | AI23: 2
A24: 22 | B24: BLEVY MAILLEBOIS | C24: MACHADO Federico | D24: 7 | E24: HVD | T24: 10 | U24: 10 | V24: 10 | X24: 10 | AB24: 10 | AD24: 10 | AF24: 10 | AH24: 70 | AI24: 2
A25: 23 | B25: BLEVY MAILLEBOIS | C25: MAIA Christophe | D25: 14 | E25: HAS | H25: 12 | I25: 12 | K25: 10 | N25: 10 | Q25: 12 | T25: 10 | U25: 10 | X25: 10 | Y25: 10 | Z25: 10 | AA25: 10 | AD25: 12 | AE25: 10 | AG25: 10 | AH25: 148 | AI25: 2
A26: 24 | B26: BLEVY MAILLEBOIS | C26: MARTIN Antoine | D26: 1 | E26: HAS | U26: 10 | AH26: 10 | AI26: 2
A27: 25 | B27: BLEVY MAILLEBOIS | C27: MARTIN Eric | D27: 9 | E27: HVS | G27: 10 | H27: 10 | N27: 10 | Q27: 12 | T27: 12 | U27: 30 | V27: 10 | Y27: 12 | Z27: 10 | AH27: 116 | AI27: 2
A28: 26 | B28: BLEVY MAILLEBOIS | C28: MARTIN Gaëtan | D28: 6 | E28: HAS | H28: 10 | N28: 10 | T28: 12 | U28: 30 | V28: 10 | Z28: 10 | AH28: 82 | AI28: 2
A29: 27 | B29: BLEVY MAILLEBOIS | C29: MARTIN Pierre | D29: 5 | E29: HAS | H29: 10 | V29: 10 | Z29: 10 | AA29: 20 | AE29: 10 | AH29: 60 | AI29: 2
A30: 28 | B30: BLEVY MAILLEBOIS | C30: MOREAU Baptiste | D30: 5 | E30: HAS | I30: 10 | P30: 10 | AA30: 10 | AD30: 10 | AF30: 10 | AH30: 50 | AI30: 2
A31: 29 | B31: BLEVY MAILLEBOIS | C31: MORIN Anthony | D31: 0 | E31: HAS | AH31: 0 | AI31: 2
A32: 30 | B32: BLEVY MAILLEBOIS | C32: SMIESCZAK Thibaut | D32: 3 | E32: HAS | H32: 10 | U32: 15 | Z32: 10 | AH32: 35 | AI32: 2
A33: 31 | B33: BLEVY MAILLEBOIS | C33: TROUILLET Baptiste | D33: 0 | E33: HAS | AH33: 0 | AI33: 2
A34: 32 | B34: BLEVY MAILLEBOIS | C34: VAZQUEZ Baptiste | D34: 11 | E34: HAS | G34: 20 | H34: 16 | K34: 10 | Q34: 20 | U34: 10 | V34: 10 | Y34: 30 | Z34: 12 | AC34: 15 | AD34: 10 | AG34: 10 | AH34: 163 | AI34: 2
A35: 33 | B35: BLEVY MAILLEBOIS | C35: WEISS Julien | D35: 2 | E35: HAS | N35: 10 | U35: 10 | AH35: 20 | AI35: 2 | AJ35: =SUM(AH3:AH35) -> 2523
A36: 34 | B36: BONNEVAL | C36: BEDOT Frédéric | D36: 3 | E36: HVS | J36: 14 | P36: 10 | W36: 15 | AH36: 39 | AI36: 3
A37: 35 | B37: BONNEVAL | C37: BEDOT Marie Claire | D37: 0 | E37: FVS | AH37: 0 | AI37: 3
A38: 36 | B38: BONNEVAL | C38: BOUILLY Eric | D38: 8 | E38: HVS | J38: 15 | P38: 10 | U38: 10 | W38: 15 | Y38: 10 | AC38: 25 | AF38: 10 | AG38: 12 | AH38: 107 | AI38: 3
A39: 37 | B39: BONNEVAL | C39: BRETON Gilbert | D39: 2 | E39: HVD | J39: 14 | P39: 10 | AH39: 24 | AI39: 3
A40: 38 | B40: BONNEVAL | C40: BRETON Patricia | D40: 1 | E40: FVD | P40: 10 | AH40: 10 | AI40: 3
A41: 39 | B41: BONNEVAL | C41: COUDRAY Sylvain | D41: 3 | E41: HAD | R41: 10 | Y41: 10 | AC41: 10 | AH41: 30 | AI41: 3
A42: 40 | B42: BONNEVAL | C42: COURTOIS Victor | D42: 2 | E42: HJS | J42: 14 | P42: 10 | AH42: 24 | AI42: 3
A43: 41 | B43: BONNEVAL | C43: DUVIGNEAU Jean François | D43: 2 | E43: HVD | Z43: 12 | AC43: 10 | AH43: 22 | AI43: 3
A44: 42 | B44: BONNEVAL | C44: FAVRÉ Mickael | D44: 5 | E44: HAD | J44: 16 | R44: 15 | AC44: 16 | AF44: 10 | AG44: 12 | AH44: 69 | AI44: 3
A45: 43 | B45: BONNEVAL | C45: GALLAIS Janny | D45: 6 | E45: HVD | J45: 10 | R45: 10 | W45: 10 | Y45: 10 | AC45: 10 | AG45: 12 | AH45: 62 | AI45: 3
A46: 44 | B46: BONNEVAL | C46: LACOSTE Phillippe | D46: 9 | E46: HVD | J46: 15 | P46: 10 | R46: 15 | U46: 10 | W46: 15 | Y46: 10 | AC46: 25 | AF46: 10 | AG46: 12 | AH46: 122 | AI46: 3
A47: 45 | B47: BONNEVAL | C47: LINGET Martine | D47: 4 | E47: FVS | P47: 10 | R47: 10 | W47: 10 | AC47: 10 | AH47: 40 | AI47: 3
A48: 46 | B48: BONNEVAL | C48: MATHIEU Maxime | D48: 2 | E48: HAS | J48: 16 | AC48: 16 | AH48: 32 | AI48: 3
A49: 47 | B49: BONNEVAL | C49: MAUGET Bruno | D49: 5 | E49: HVS | J49: 15 | U49: 10 | Y49: 10 | AC49: 25 | AG49: 12 | AH49: 72 | AI49: 3
A50: 48 | B50: BONNEVAL | C50: PERRICHOT Denis | D50: 2 | E50: HVS | R50: 15 | Z50: 12 | AH50: 27 | AI50: 3
A51: 49 | B51: BONNEVAL | C51: THOMAS Eric | D51: 4 | E51: HVD | R51: 10 | Y51: 10 | Z51: 12 | AC51: 10 | AH51: 42 | AI51: 3
A52: 50 | B52: BONNEVAL | C52: VAUGLIN Marcel | D52: 5 | E52: HVD | J52: 10 | P52: 10 | R52: 10 | W52: 10 | AC52: 10 | AH52: 50 | AI52: 3
A53: 51 | B53: BONNEVAL | C53: VINCENZI Sylvain | D53: 4 | E53: HVS | J53: 16 | AC53: 16 | AF53: 10 | AG53: 12 | AH53: 54 | AI53: 3 | AJ53: =SUM(AH36:AH53) -> 826
A54: 52 | B54: BOUGLAINVAL | C54: ALLOUIS Corentin | D54: 18 | E54: HAD | F54: 10 | G54: 15 | H54: 18 | I54: 10 | J54: 10 | K54: 15 | M54: 10 | N54: 10 | P54: 10 | Q54: 10 | R54: 18 | T54: 15 | X54: 10 | Z54: 20 | AC54: 20 | AD54: 10 | AE54: 10 | AF54: 12 | AH54: 233 | AI54: 4
A55: 53 | B55: BOUGLAINVAL | C55: ALLOUIS Stéphane | D55: 14 | E55: HVS | F55: 20 | G55: 18 | I55: 12 | K55: 15 | M55: 10 | N55: 10 | T55: 15 | X55: 10 | Z55: 10 | AB55: 12 | AC55: 20 | AD55: 22 | AE55: 14 | AF55: 10 | AH55: 198 | AI55: 4
A56: 54 | B56: BOUGLAINVAL | C56: BATAYER Gilberte | D56: 0 | E56: FVS | AH56: 0 | AI56: 4
A57: 55 | B57: BOUGLAINVAL | C57: BATAYER Yves | D57: 0 | E57: HVS | AH57: 0 | AI57: 4
A58: 56 | B58: BOUGLAINVAL | C58: BOILLOD Sylvain | D58: 9 | E58: HVS | G58: 10 | K58: 12 | N58: 10 | Q58: 10 | U58: 15 | X58: 10 | Y58: 10 | AA58: 10 | AG58: 10 | AH58: 97 | AI58: 4
A59: 57 | B59: BOUGLAINVAL | C59: BREMAUD André | D59: 5 | E59: HVD | H59: 10 | K59: 12 | U59: 10 | V59: 10 | AG59: 15 | AH59: 57 | AI59: 4
A60: 58 | B60: BOUGLAINVAL | C60: CANALES Corinne | D60: 3 | E60: FVD | AD60: 25 | AE60: 15 | AG60: 16 | AH60: 56 | AI60: 4
A61: 59 | B61: BOUGLAINVAL | C61: CAUSERET Gilles | D61: 12 | E61: HVD | I61: 10 | J61: 12 | K61: 10 | N61: 10 | P61: 10 | W61: 25 | X61: 10 | Y61: 10 | AA61: 10 | AB61: 12 | AE61: 10 | AF61: 12 | AH61: 141 | AI61: 4
A62: 60 | B62: BOUGLAINVAL | C62: CHALLE Sébastien | D62: 14 | E62: HAS | F62: 10 | G62: 10 | H62: 10 | I62: 14 | J62: 10 | K62: 10 | M62: 15 | P62: 12 | T62: 10 | V62: 12 | X62: 10 | AA62: 10 | AB62: 10 | AE62: 10 | AH62: 153 | AI62: 4
A63: 61 | B63: BOUGLAINVAL | C63: CHALLE Stéphane | D63: 5 | E63: HAS | G63: 10 | N63: 12 | Q63: 14 | U63: 14 | Y63: 10 | AH63: 60 | AI63: 4
A64: 62 | B64: BOUGLAINVAL | C64: CHARTIER Bernard | D64: 15 | E64: HVS | G64: 25 | H64: 10 | I64: 12 | J64: 10 | N64: 10 | Q64: 12 | U64: 10 | W64: 10 | X64: 10 | Y64: 10 | Z64: 10 | AB64: 10 | AC64: 15 | AE64: 14 | AF64: 10 | AH64: 178 | AI64: 4
A65: 63 | B65: BOUGLAINVAL | C65: COUELLAUD Walter | D65: 16 | E65: HAS | G65: 10 | I65: 10 | J65: 10 | K65: 10 | M65: 10 | N65: 10 | P65: 10 | Q65: 10 | T65: 10 | V65: 10 | W65: 10 | X65: 10 | Y65: 25 | AD65: 10 | AE65: 10 | AF65: 12 | AH65: 177 | AI65: 4
A66: 64 | B66: BOUGLAINVAL | C66: COUPECHOUX Gérard | D66: 2 | E66: HVS | G66: 20 | AG66: 10 | AH66: 30 | AI66: 4
A67: 65 | B67: BOUGLAINVAL | C67: CRAMPOND Yannick | D67: =COUNTIF(F67:AG67,">1") -> 4 | E67: HVD | X67: 10 | Y67: 10 | Z67: 10 | AG67: 10 | AH67: =SUM(F67:AG67) -> 40 | AI67: 4
A68: 66 | B68: BOUGLAINVAL | C68: CRETON Michel | D68: 11 | E68: HVD | F68: 10 | G68: 10 | I68: 10 | J68: 12 | K68: 10 | Q68: 10 | V68: 10 | W68: 10 | X68: 10 | Y68: 10 | AB68: 10 | AH68: 112 | AI68: 4
A69: 67 | B69: BOUGLAINVAL | C69: CRETON Renée | D69: 11 | E69: FVD | F69: 10 | G69: 10 | I69: 10 | J69: 12 | K69: 10 | Q69: 10 | V69: 10 | W69: 10 | X69: 10 | Y69: 10 | AB69: 10 | AH69: 112 | AI69: 4
A70: 68 | B70: BOUGLAINVAL | C70: DENEFF Anne | D70: 10 | E70: FAS | F70: 10 | G70: 15 | L70: 10 | M70: 15 | Q70: 10 | U70: 10 | V70: 10 | Y70: 10 | AB70: 10 | AE70: 12 | AH70: 112 | AI70: 4
A71: 69 | B71: BOUGLAINVAL | C71: DENEFF Estéban | D71: 8 | E71: HJS | F71: 10 | G71: 10 | L71: 15 | M71: 15 | Q71: 10 | U71: 10 | V71: 10 | AB71: 10 | AH71: 90 | AI71: 4
A72: 70 | B72: BOUGLAINVAL | C72: DENEFF Guillaume | D72: 11 | E72: HAS | F72: 10 | G72: 15 | L72: 10 | M72: 15 | Q72: 12 | U72: 10 | V72: 22 | Y72: 10 | AB72: 10 | AE72: 12 | AG72: 15 | AH72: 141 | AI72: 4
A73: 71 | B73: BOUGLAINVAL | C73: DHERVILLIERS Patrice | D73: 4 | E73: HVS | G73: 10 | I73: 10 | N73: 12 | Q73: 10 | AH73: 42 | AI73: 4
A74: 72 | B74: BOUGLAINVAL | C74: ESLAN Pierre | D74: 13 | E74: HVD | I74: 10 | J74: 12 | K74: 10 | N74: 10 | T74: 15 | U74: 10 | W74: 10 | X74: 10 | AA74: 10 | AB74: 10 | AD74: 10 | AE74: 10 | AG74: 25 | AH74: 152 | AI74: 4
A75: 73 | B75: BOUGLAINVAL | C75: FABRY Emmanuel | D75: 10 | E75: HVS | G75: 25 | I75: 22 | N75: 10 | P75: 15 | T75: 15 | U75: 14 | X75: 14 | Y75: 15 | AA75: 10 | AG75: 25 | AH75: 165 | AI75: 4
A76: 74 | B76: BOUGLAINVAL | C76: FRESNEDA Angelo | D76: 8 | E76: HVD | G76: 10 | I76: 10 | L76: 10 | U76: 10 | V76: 22 | Y76: 10 | AB76: 10 | AG76: 10 | AH76: 92 | AI76: 4
A77: 75 | B77: BOUGLAINVAL | C77: GAMMUTO Giovanna | D77: 1 | E77: FAS | M77: 16 | AH77: 16 | AI77: 4
A78: 76 | B78: BOUGLAINVAL | C78: GARGASSON Jacky | D78: 12 | E78: HVD | F78: 20 | G78: 12 | N78: 10 | P78: 10 | U78: 10 | V78: 14 | X78: 10 | Z78: 10 | AB78: 10 | AC78: 20 | AD78: 10 | AF78: 10 | AH78: 146 | AI78: 4
A79: 77 | B79: BOUGLAINVAL | C79: GARGASSON Patricia | D79: 7 | E79: FVD | F79: 10 | G79: 12 | O79: 15 | P79: 10 | Z79: 10 | AD79: 10 | AF79: 10 | AH79: 77 | AI79: 4
A80: 78 | B80: BOUGLAINVAL | C80: GARNIER Michel | D80: 3 | E80: HVS | F80: 10 | G80: 10 | M80: 10 | AH80: 30 | AI80: 4
A81: 79 | B81: BOUGLAINVAL | C81: GASTINEL Patrice | D81: 6 | E81: HVS | G81: 10 | I81: 22 | K81: 15 | N81: 10 | AB81: 10 | AD81: 10 | AH81: 77 | AI81: 4
A82: 80 | B82: BOUGLAINVAL | C82: GAUDEFROY Patrice | D82: 10 | E82: HVS | F82: 15 | G82: 20 | K82: 15 | N82: 10 | Q82: 10 | U82: 25 | Y82: 10 | AA82: 10 | AB82: 10 | AG82: 10 | AH82: 135 | AI82: 4
A83: 81 | B83: BOUGLAINVAL | C83: GESTIN Emmanuelle | D83: 7 | E83: FAD | I83: 10 | L83: 10 | O83: 20 | Q83: 12 | V83: 10 | Y83: 10 | AB83: 10 | AH83: 82 | AI83: 4
A84: 82 | B84: BOUGLAINVAL | C84: GESTIN Jean Philippe | D84: 7 | E84: HVD | I84: 10 | L84: 10 | N84: 10 | U84: 10 | V84: 22 | Y84: 10 | AB84: 10 | AH84: 82 | AI84: 4
A85: 83 | B85: BOUGLAINVAL | C85: GESTIN Luyana | D85: 2 | E85: FJD | L85: 10 | M85: 10 | AH85: 20 | AI85: 4
A86: 84 | B86: BOUGLAINVAL | C86: GOLLION Stephane | D86: 10 | E86: HAS | G86: 10 | M86: 16 | P86: 10 | T86: 10 | V86: 10 | X86: 10 | Y86: 25 | AB86: 10 | AD86: 10 | AE86: 10 | AH86: 121 | AI86: 4
A87: 85 | B87: BOUGLAINVAL | C87: GOURDAIN Pascal | D87: 3 | E87: HVD | K87: 15 | AB87: 12 | AG87: 10 | AH87: 37 | AI87: 4
A88: 86 | B88: BOUGLAINVAL | C88: GUILLAMOT David | D88: 4 | E88: HAS | I88: 10 | J88: 10 | Y88: 15 | AD88: 10 | AH88: 45 | AI88: 4
A89: 87 | B89: BOUGLAINVAL | C89: HALGRAIN Francis | D89: 3 | E89: HVS | N89: 10 | R89: 18 | W89: 25 | AH89: 53 | AI89: 4
A90: 88 | B90: BOUGLAINVAL | C90: HERY Vincent | D90: 8 | E90: HVS | I90: 22 | J90: 10 | N90: 10 | P90: 15 | T90: 15 | X90: 14 | Y90: 15 | AD90: 10 | AH90: 111 | AI90: 4
A91: 89 | B91: BOUGLAINVAL | C91: HICGUET Anne-Claire | D91: 12 | E91: FAS | F91: 10 | G91: 10 | H91: 10 | I91: 14 | J91: 10 | P91: 10 | T91: 10 | V91: 12 | X91: 10 | AA91: 10 | AB91: 10 | AE91: 10 | AH91: 126 | AI91: 4
A92: 90 | B92: BOUGLAINVAL | C92: LE BARS Didier | D92: 4 | E92: HVD | G92: 10 | I92: 18 | X92: 10 | AB92: 12 | AH92: 50 | AI92: 4
A93: 91 | B93: BOUGLAINVAL | C93: LE BRIS Fabrice | D93: 22 | E93: HVS | F93: 15 | G93: 18 | J93: 10 | K93: 15 | M93: 10 | N93: 10 | P93: 12 | Q93: 14 | T93: 10 | U93: 25 | V93: 10 | W93: 10 | X93: 10 | Y93: 10 | Z93: 10 | AA93: 10 | AB93: 12 | AC93: 20 | AD93: 22 | AE93: 10 | AF93: 10 | AG93: 10 | AH93: 283 | AI93: 4
A94: 92 | B94: BOUGLAINVAL | C94: LIBERT Didier | D94: 6 | E94: HAD | G94: 10 | I94: 10 | J94: 12 | K94: 10 | N94: 10 | AG94: 16 | AH94: 68 | AI94: 4
A95: 93 | B95: BOUGLAINVAL | C95: LOREILLER Bruno | D95: 18 | E95: HVD | F95: 10 | H95: 10 | I95: 10 | K95: 12 | M95: 16 | N95: 10 | Q95: 10 | T95: 15 | U95: 25 | V95: 12 | X95: 10 | Y95: 25 | AA95: 10 | AB95: 10 | AC95: 20 | AD95: 22 | AE95: 12 | AG95: 15 | AH95: 254 | AI95: 4
A96: 94 | B96: BOUGLAINVAL | C96: MACHILS Didier | D96: 0 | E96: HVD | AH96: 0 | AI96: 4
A97: 95 | B97: BOUGLAINVAL | C97: MANIEZ Evan | D97: 4 | E97: HJS | H97: 10 | U97: 10 | Y97: 14 | AB97: 10 | AH97: 44 | AI97: 4
A98: 96 | B98: BOUGLAINVAL | C98: MANIEZ Grégory | D98: 9 | E98: HAS | F98: 15 | H98: 10 | N98: 10 | U98: 10 | Y98: 14 | AA98: 10 | AB98: 10 | AE98: 16 | AF98: 15 | AH98: 110 | AI98: 4
A99: 97 | B99: BOUGLAINVAL | C99: MANIEZ Hugo | D99: 9 | E99: HAS | H99: 10 | I99: 10 | U99: 10 | W99: 25 | X99: 10 | Y99: 14 | AA99: 10 | AB99: 10 | AF99: 15 | AH99: 114 | AI99: 4
A100: 98 | B100: BOUGLAINVAL | C100: MARTEL Laurent | D100: 5 | E100: HAS | G100: 18 | R100: 18 | V100: 10 | AA100: 10 | AG100: 10 | AH100: 66 | AI100: 4
A101: 99 | B101: BOUGLAINVAL | C101: MARTIN Gérard | D101: 16 | E101: HVD | F101: 20 | G101: 12 | J101: 10 | K101: 10 | M101: 10 | N101: 10 | P101: 10 | U101: 15 | V101: 14 | X101: 10 | Z101: 20 | AB101: 10 | AC101: 15 | AD101: 10 | AF101: 10 | AG101: 10 | AH101: 196 | AI101: 4
A102: 100 | B102: BOUGLAINVAL | C102: MARTIN Nadine | D102: 15 | E102: FVD | F102: 10 | G102: 10 | J102: 10 | K102: 10 | M102: 10 | O102: 15 | P102: 10 | U102: 15 | X102: 10 | Z102: 20 | AB102: 10 | AC102: 15 | AD102: 10 | AF102: 10 | AG102: 10 | AH102: 175 | AI102: 4
A103: 101 | B103: BOUGLAINVAL | C103: MEHANECHE Roger | D103: 11 | E103: HVS | F103: 10 | G103: 10 | I103: 12 | K103: 10 | V103: 10 | X103: 10 | Y103: 10 | Z103: 10 | AB103: 10 | AD103: 10 | AG103: 10 | AH103: 112 | AI103: 4
A104: 102 | B104: BOUGLAINVAL | C104: MENAGER Jean Paul | D104: 12 | E104: HVD | G104: 20 | I104: 10 | N104: 12 | P104: 10 | V104: 14 | X104: 10 | Y104: 10 | Z104: 10 | AA104: 10 | AB104: 12 | AE104: 10 | AF104: 12 | AH104: 140 | AI104: 4
A105: 103 | B105: BOUGLAINVAL | C105: MINET Serge | D105: 1 | E105: HVS | AE105: 15 | AH105: 15 | AI105: 4
A106: 104 | B106: BOUGLAINVAL | C106: PENON Damien | D106: 7 | E106: HAS | G106: 25 | J106: 10 | N106: 10 | X106: 14 | AA106: 10 | AD106: 10 | AG106: 25 | AH106: 104 | AI106: 4
A107: 105 | B107: BOUGLAINVAL | C107: POLVE Jacques | D107: 11 | E107: HVD | F107: 10 | G107: 10 | K107: 10 | M107: 16 | T107: 10 | X107: 10 | Y107: 10 | AC107: 20 | AE107: 14 | AF107: 10 | AG107: 10 | AH107: 130 | AI107: 4
A108: 106 | B108: BOUGLAINVAL | C108: POUPEAU Henri | D108: 3 | E108: HVS | J108: 10 | AA108: 10 | AB108: 10 | AH108: 30 | AI108: 4
A109: 107 | B109: BOUGLAINVAL | C109: POUSSET Alexandre | D109: 4 | E109: HAS | G109: 10 | I109: 10 | Q109: 14 | U109: 14 | AH109: 48 | AI109: 4
A110: 108 | B110: BOUGLAINVAL | C110: PREVOST Francoise | D110: 7 | E110: FVD | F110: 10 | H110: 10 | I110: 10 | L110: 15 | Q110: 10 | AB110: 10 | AG110: 10 | AH110: 75 | AI110: 4
A111: 109 | B111: BOUGLAINVAL | C111: RANVIER Marcel | D111: 8 | E111: HVD | G111: 10 | I111: 10 | J111: 12 | K111: 10 | Q111: 10 | U111: 10 | X111: 10 | AG111: 16 | AH111: 88 | AI111: 4
A112: 110 | B112: BOUGLAINVAL | C112: ROLLET Patrick | D112: 7 | E112: HAS | G112: 10 | I112: 10 | K112: 10 | N112: 10 | Q112: 10 | V112: 10 | X112: 10 | AH112: 70 | AI112: 4
A113: 111 | B113: BOUGLAINVAL | C113: SANCHEZ Antoine | D113: 0 | E113: HVS | AH113: 0 | AI113: 4
A114: 112 | B114: BOUGLAINVAL | C114: TOUTAIN Sylvie | D114: 6 | E114: FVS | G114: 10 | I114: 14 | O114: 20 | V114: 10 | Y114: 10 | AG114: 10 | AH114: 74 | AI114: 4
A115: 113 | B115: BOUGLAINVAL | C115: TRICHET Anthony | D115: 1 | E115: HAD | AE115: 15 | AH115: 15 | AI115: 4 | AJ115: =SUM(AH54:AH115) -> 5857
A116: 114 | B116: BOULES CLUB CLOYSIEN | C116: ALEXANDRE Marc | D116: 3 | E116: HVS | AA116: 10 | AC116: 10 | AF116: 10 | AH116: 30 | AI116: 17
A117: 115 | B117: BOULES CLUB CLOYSIEN | C117: ALEXANDRE Maxence | D117: 3 | E117: HAS | AA117: 10 | AC117: 10 | AF117: 10 | AH117: 30 | AI117: 17
A118: 116 | B118: BOULES CLUB CLOYSIEN | C118: BELAN Christophe | D118: 7 | E118: HAS | J118: 10 | K118: 18 | N118: 10 | P118: 10 | U118: 10 | Y118: 10 | AB118: 10 | AH118: 78 | AI118: 17
A119: 117 | B119: BOULES CLUB CLOYSIEN | C119: BORTOLI cyril | D119: 0 | E119: HAS | AH119: 0 | AI119: 17
A120: 118 | B120: BOULES CLUB CLOYSIEN | C120: BOSSOIS Christian | D120: 3 | E120: HAD | V120: 20 | W120: 20 | AB120: 10 | AH120: 50 | AI120: 17
A121: 119 | B121: BOULES CLUB CLOYSIEN | C121: BOULARD Celia | D121: 1 | E121: FAS | P121: 10 | AH121: 10 | AI121: 17
A122: 120 | B122: BOULES CLUB CLOYSIEN | C122: BOULARD Christophe | D122: 1 | E122: HVS | AC122: 30 | AH122: 30 | AI122: 17
A123: 121 | B123: BOULES CLUB CLOYSIEN | C123: CAVALLI Hervé | D123: 3 | E123: HAS | P123: 18 | V123: 12 | X123: 10 | AH123: 40 | AI123: 17
A124: 122 | B124: BOULES CLUB CLOYSIEN | C124: CHAUVEAU Denis | D124: 5 | E124: HVS | J124: 25 | P124: 30 | V124: 12 | X124: 10 | AF124: 10 | AH124: 87 | AI124: 17
A125: 123 | B125: BOULES CLUB CLOYSIEN | C125: FRANCOIS André | D125: 1 | E125: HVD | P125: 10 | AH125: 10 | AI125: 17
A126: 124 | B126: BOULES CLUB CLOYSIEN | C126: GAUGUIN Alain | D126: 9 | E126: HAS | N126: 10 | V126: 20 | W126: 20 | X126: 10 | Y126: 10 | Z126: 10 | AA126: 10 | AB126: 10 | AC126: 30 | AH126: 130 | AI126: 17
A127: 125 | B127: BOULES CLUB CLOYSIEN | C127: GERARD Frederique | D127: 9 | E127: HAS | F127: 20 | J127: 22 | L127: 20 | N127: 10 | P127: 18 | T127: 22 | U127: 10 | W127: 30 | Y127: 12 | AH127: 164 | AI127: 17
A128: 126 | B128: BOULES CLUB CLOYSIEN | C128: GERARD MARINE | D128: 7 | E128: FAS | J128: 22 | L128: 15 | O128: 15 | P128: 10 | T128: 12 | U128: 10 | AB128: 10 | AH128: 94 | AI128: 17
A129: 127 | B129: BOULES CLUB CLOYSIEN | C129: GERARD Marie-Laure | D129: 8 | E129: FAS | J129: 12 | K129: 10 | O129: 22 | P129: 10 | R129: 15 | T129: 12 | U129: 10 | Y129: 12 | AH129: 103 | AI129: 17
A130: 128 | B130: BOULES CLUB CLOYSIEN | C130: GERARD Michel | D130: 7 | E130: HVS | J130: 12 | M130: 12 | N130: 10 | P130: 10 | T130: 10 | Y130: 12 | AD130: 10 | AH130: 76 | AI130: 17
A131: 129 | B131: BOULES CLUB CLOYSIEN | C131: HOUE Jean Pierre | D131: =COUNTIF(F131:AG131,">1") -> 11 | E131: HVS | J131: 20 | P131: 10 | Q131: 10 | U131: 22 | V131: 14 | W131: 22 | X131: 10 | AB131: 10 | AD131: 10 | AF131: 25 | AG131: 10 | AH131: =SUM(F131:AG131) -> 163 | AI131: 17
A132: 130 | B132: BOULES CLUB CLOYSIEN | C132: LALLIOT Clement | D132: 5 | E132: HAS | J132: 10 | P132: 16 | T132: 10 | X132: 10 | AD132: 10 | AH132: 56 | AI132: 17
A133: 131 | B133: BOULES CLUB CLOYSIEN | C133: LALLIOT Gildas | D133: 9 | E133: HAS | F133: 20 | H133: 10 | J133: 12 | P133: 10 | R133: 15 | T133: 22 | V133: 10 | X133: 30 | AB133: 10 | AH133: 139 | AI133: 17
A134: 132 | B134: BOULES CLUB CLOYSIEN | C134: LALLIOT Manon | D134: 6 | E134: FAS | H134: 10 | L134: 20 | O134: 15 | P134: 10 | V134: 10 | Y134: 10 | AH134: 75 | AI134: 17
A135: 133 | B135: BOULES CLUB CLOYSIEN | C135: LALLIOT Priscilla | D135: 7 | E135: FAS | H135: 10 | K135: 10 | O135: 22 | P135: 10 | R135: 10 | T135: 12 | Y135: 10 | AH135: 84 | AI135: 17
A136: 134 | B136: BOULES CLUB CLOYSIEN | C136: LASCAUX Yohann | D136: 0 | E136: HAS | AH136: 0 | AI136: 17
A137: 135 | B137: BOULES CLUB CLOYSIEN | C137: MAURICE Marc | D137: 15 | E137: HVS | J137: 20 | M137: 12 | N137: 14 | P137: 12 | Q137: 10 | T137: 10 | U137: 22 | V137: 14 | W137: 22 | X137: 10 | Y137: 10 | Z137: 10 | AB137: 10 | AD137: 10 | AF137: 10 | AH137: 196 | AI137: 17
A138: 136 | B138: BOULES CLUB CLOYSIEN | C138: PATEYRON Michel | D138: 15 | E138: HVS | J138: 20 | M138: 12 | P138: 12 | Q138: 10 | R138: 10 | T138: 10 | U138: 22 | V138: 14 | X138: 10 | Y138: 10 | Z138: 10 | AB138: 10 | AD138: 10 | AF138: 10 | AG138: 10 | AH138: 180 | AI138: 17
A139: 137 | B139: BOULES CLUB CLOYSIEN | C139: PEAUGER Christian | D139: 12 | E139: HVS | H139: 10 | J139: 10 | K139: 18 | N139: 10 | P139: 10 | R139: 15 | T139: 10 | U139: 10 | V139: 10 | X139: 30 | Y139: 10 | AB139: 10 | AH139: 153 | AI139: 17
A140: 138 | B140: BOULES CLUB CLOYSIEN | C140: QUINTAIS LUCIA | D140: 5 | E140: FVS | J140: 25 | P140: 10 | V140: 12 | X140: 10 | AF140: 10 | AH140: 67 | AI140: 17
A141: 139 | B141: BOULES CLUB CLOYSIEN | C141: ROLANDEAU Mehdi | D141: 5 | E141: HAS | J141: 25 | P141: 30 | X141: 10 | AB141: 10 | AF141: 25 | AH141: 100 | AI141: 17
A142: 140 | B142: BOULES CLUB CLOYSIEN | C142: SOLLET Stéphane | D142: 0 | E142: HVS | AH142: 0 | AI142: 17
A143: 141 | B143: BOULES CLUB CLOYSIEN | C143: TANCRE Catherine | D143: 11 | E143: FVS | H143: 10 | M143: 12 | N143: 10 | P143: 10 | R143: 10 | T143: 10 | V143: 10 | W143: 22 | X143: 10 | Y143: 10 | AB143: 10 | AH143: 124 | AI143: 17
A144: 142 | B144: BOULES CLUB CLOYSIEN | C144: TOURNAY Quentin | D144: 7 | E144: HAS | J144: 10 | L144: 15 | N144: 10 | P144: 10 | T144: 22 | U144: 10 | AB144: 10 | AH144: 87 | AI144: 17
A145: 143 | B145: BOULES CLUB CLOYSIEN | C145: TRIAN Annie | D145: 0 | E145: FVS | AH145: 0 | AI145: 17
A146: 144 | B146: BOULES CLUB CLOYSIEN | C146: TRIAU Lucas | D146: 9 | E146: HAS | J146: 10 | K146: 18 | P146: 16 | T146: 10 | V146: 10 | W146: 30 | X146: 10 | AB146: 10 | AD146: 10 | AH146: 124 | AI146: 17
A147: 145 | B147: BOULES CLUB CLOYSIEN | C147: TRIAU Fabrice | D147: 9 | E147: HAS | F147: 20 | J147: 22 | N147: 10 | P147: 10 | T147: 10 | V147: 10 | X147: 30 | AB147: 10 | AC147: 30 | AH147: 152 | AI147: 17
A148: 146 | B148: BOULES CLUB CLOYSIEN | C148: VIMEUX Rene | D148: 5 | E148: HVS | N148: 10 | P148: 10 | W148: 30 | AC148: 10 | AG148: 10 | AH148: 70 | AI148: 17
A149: 147 | B149: BOULES CLUB CLOYSIEN | C149: VINCENT Cyril | D149: 3 | E149: HAD | V149: 20 | W149: 20 | AB149: 10 | AH149: 50 | AI149: 17
A150: 148 | B150: BOULES CLUB CLOYSIEN | C150: VINCENZI Julie | D150: 7 | E150: FAS | H150: 10 | J150: 10 | K150: 10 | P150: 10 | T150: 10 | X150: 10 | Y150: 10 | AH150: 70 | AI150: 17 | AJ150: =SUM(AH116:AH150) -> 2822
A151: 149 | B151: CHALLET-BAILLEAU L'EVEQUE | C151: BOIS Daniel | D151: 2 | E151: HVS | N151: 10 | V151: 12 | AH151: 22 | AI151: 5
A152: 150 | B152: CHALLET-BAILLEAU L'EVEQUE | C152: BOISSAY Agès | D152: 8 | E152: FVS | H152: 12 | J152: 10 | O152: 16 | Q152: 10 | V152: 10 | Y152: 10 | AD152: 10 | AG152: 10 | AH152: 88 | AI152: 5
A153: 151 | B153: CHALLET-BAILLEAU L'EVEQUE | C153: BORGES DE MORAIS Frédéric | D153: 4 | E153: HAS | I153: 10 | N153: 10 | T153: 10 | V153: 10 | AH153: 40 | AI153: 5
A154: 152 | B154: CHALLET-BAILLEAU L'EVEQUE | C154: BORGES DE MORAIS José | D154: 5 | E154: HVS | F154: 10 | M154: 10 | N154: 10 | T154: 10 | V154: 10 | AH154: 50 | AI154: 5
A155: 153 | B155: CHALLET-BAILLEAU L'EVEQUE | C155: BOUFFERAIT Dominique | D155: 0 | E155: HVS | AH155: 0 | AI155: 5
A156: 154 | B156: CHALLET-BAILLEAU L'EVEQUE | C156: BRABANT Annick | D156: 4 | E156: FVS | G156: 10 | L156: 12 | O156: 30 | P156: 10 | AH156: 62 | AI156: 5
A157: 155 | B157: CHALLET-BAILLEAU L'EVEQUE | C157: CATTANEO Brigitte | D157: 6 | E157: FVS | M157: 15 | O157: 12 | V157: 15 | Z157: 10 | AB157: 10 | AF157: 10 | AH157: 72 | AI157: 5
A158: 156 | B158: CHALLET-BAILLEAU L'EVEQUE | C158: CATTANEO Didier | D158: 7 | E158: HVS | G158: 10 | M158: 15 | N158: 10 | V158: 15 | Z158: 10 | AB158: 10 | AF158: 10 | AH158: 80 | AI158: 5
A159: 157 | B159: CHALLET-BAILLEAU L'EVEQUE | C159: COUDIER Alain | D159: 7 | E159: HVS | G159: 10 | I159: 10 | K159: 10 | N159: 10 | P159: 10 | T159: 10 | AC159: 12 | AH159: 72 | AI159: 5
A160: 158 | B160: CHALLET-BAILLEAU L'EVEQUE | C160: DEMONCAY Florence | D160: 10 | E160: FAS | F160: 10 | I160: 10 | L160: 15 | O160: 30 | P160: 10 | V160: 10 | AB160: 10 | AD160: 12 | AE160: 16 | AG160: 10 | AH160: 133 | AI160: 5
A161: 159 | B161: CHALLET-BAILLEAU L'EVEQUE | C161: DEMONCAY Patrick | D161: 14 | E161: HVS | F161: 10 | G161: 10 | I161: 10 | L161: 15 | M161: 10 | N161: 10 | P161: 10 | Q161: 15 | V161: 10 | AB161: 14 | AC161: 12 | AD161: 12 | AE161: 16 | AG161: 10 | AH161: 164 | AI161: 5
A162: 160 | B162: CHALLET-BAILLEAU L'EVEQUE | C162: DENIEAULT Patrice | D162: 8 | E162: HVS | F162: 10 | G162: 10 | N162: 10 | Q162: 10 | T162: 10 | V162: 10 | AB162: 10 | AG162: 10 | AH162: 80 | AI162: 5
A163: 161 | B163: CHALLET-BAILLEAU L'EVEQUE | C163: DUMONT Isabelle | D163: 11 | E163: FVS | H163: 12 | I163: 10 | J163: 10 | M163: 15 | N163: 10 | Q163: 10 | T163: 10 | V163: 15 | Z163: 10 | AD163: 10 | AG163: 10 | AH163: 122 | AI163: 5
A164: 162 | B164: CHALLET-BAILLEAU L'EVEQUE | C164: DURQUETY Catherine | D164: 5 | E164: FVS | G164: 10 | L164: 10 | O164: 16 | Q164: 10 | Y164: 10 | AH164: 56 | AI164: 5
A165: 163 | B165: CHALLET-BAILLEAU L'EVEQUE | C165: FROGER Cédric | D165: 2 | E165: HAS | V165: 10 | AB165: 10 | AH165: 20 | AI165: 5
A166: 164 | B166: CHALLET-BAILLEAU L'EVEQUE | C166: FROGER Didier | D166: 1 | E166: HVS | V166: 10 | AH166: 10 | AI166: 5
A167: 165 | B167: CHALLET-BAILLEAU L'EVEQUE | C167: FROGER Muriel | D167: 1 | E167: FVS | V167: 10 | AH167: 10 | AI167: 5
A168: 166 | B168: CHALLET-BAILLEAU L'EVEQUE | C168: IMPERIALE Chantal | D168: 4 | E168: FVS | L168: 12 | O168: 12 | P168: 10 | V168: 10 | AH168: 44 | AI168: 5
A169: 167 | B169: CHALLET-BAILLEAU L'EVEQUE | C169: IMPERIALE Claude | D169: 8 | E169: HVS | G169: 10 | L169: 12 | N169: 10 | P169: 10 | Q169: 15 | T169: 10 | V169: 10 | Y169: 10 | AH169: 87 | AI169: 5
A170: 168 | B170: CHALLET-BAILLEAU L'EVEQUE | C170: LATIMIER Jean Jacques | D170: 8 | E170: HVS | N170: 10 | Q170: 10 | V170: 12 | Y170: 10 | AA170: 16 | AB170: 12 | AD170: 10 | AE170: 12 | AH170: 92 | AI170: 5
A171: 169 | B171: CHALLET-BAILLEAU L'EVEQUE | C171: LATIMIER Michel | D171: 4 | E171: HVS | K171: 10 | N171: 10 | Q171: 10 | Y171: 10 | AH171: 40 | AI171: 5
A172: 170 | B172: CHALLET-BAILLEAU L'EVEQUE | C172: LATIMIER Pascal | D172: 14 | E172: HVS | F172: 10 | G172: 10 | H172: 12 | I172: 10 | K172: 10 | M172: 15 | N172: 10 | Q172: 10 | V172: 10 | Y172: 10 | AB172: 12 | AD172: 10 | AE172: 12 | AG172: 10 | AH172: 151 | AI172: 5
A173: 171 | B173: CHALLET-BAILLEAU L'EVEQUE | C173: LE PAGE Jean Pierre | D173: 2 | E173: HVS | N173: 10 | AB173: 10 | AH173: 20 | AI173: 5
A174: 172 | B174: CHALLET-BAILLEAU L'EVEQUE | C174: MEUNIER Michel | D174: 0 | E174: HVS | AH174: 0 | AI174: 5
A175: 173 | B175: CHALLET-BAILLEAU L'EVEQUE | C175: MOISSON David | D175: 4 | E175: HAS | G175: 10 | I175: 10 | K175: 10 | N175: 10 | AH175: 40 | AI175: 5
A176: 174 | B176: CHALLET-BAILLEAU L'EVEQUE | C176: NICOLAS Brigitte | D176: 2 | E176: FVS | N176: 10 | V176: 10 | AH176: 20 | AI176: 5
A177: 175 | B177: CHALLET-BAILLEAU L'EVEQUE | C177: PAMBRUN Anthony | D177: 1 | E177: HAS | N177: 10 | AH177: 10 | AI177: 5
A178: 176 | B178: CHALLET-BAILLEAU L'EVEQUE | C178: PRIEUR Patrice | D178: 3 | E178: HAS | G178: 10 | K178: 10 | AE178: 12 | AH178: 32 | AI178: 5
A179: 177 | B179: CHALLET-BAILLEAU L'EVEQUE | C179: ROBILLARD Gilles | D179: 8 | E179: HVS | G179: 10 | N179: 10 | Q179: 10 | V179: 12 | Y179: 10 | AA179: 16 | AB179: 12 | AG179: 10 | AH179: 90 | AI179: 5
A180: 178 | B180: CHALLET-BAILLEAU L'EVEQUE | C180: SOIRAT Brigitte | D180: 1 | E180: FVS | N180: 10 | AH180: 10 | AI180: 5
A181: 179 | B181: CHALLET-BAILLEAU L'EVEQUE | C181: SOIRAT Philippe | D181: 7 | E181: HVD | I181: 10 | K181: 10 | N181: 10 | Q181: 15 | V181: 10 | AB181: 14 | AC181: 12 | AH181: 81 | AI181: 5
A182: 180 | B182: CHALLET-BAILLEAU L'EVEQUE | C182: TAUPIN Arnaud | D182: 3 | E182: HAS | N182: 14 | V182: 10 | AB182: 14 | AH182: 38 | AI182: 5
A183: 181 | B183: CHALLET-BAILLEAU L'EVEQUE | C183: TAUPIN Maxime | D183: 5 | E183: HJS | J183: 10 | M183: 10 | N183: 14 | V183: 10 | AB183: 10 | AH183: 54 | AI183: 5
A184: 182 | B184: CHALLET-BAILLEAU L'EVEQUE | C184: VAN ELSLANDER Paul | D184: 4 | E184: HAS | F184: 10 | G184: 10 | I184: 10 | L184: 12 | AH184: 42 | AI184: 5
A185: 183 | B185: CHALLET-BAILLEAU L'EVEQUE | C185: WINGEL Lionel | D185: 7 | E185: HVS | G185: 10 | L185: 10 | M185: 10 | N185: 10 | V185: 10 | Y185: 10 | AA185: 16 | AH185: 76 | AI185: 5 | AJ185: =SUM(AH151:AH185) -> 2008
A186: 184 | B186: CHARPONT | C186: BECHE Roland | D186: 7 | E186: HVS | G186: 14 | I186: 15 | N186: 10 | U186: 10 | V186: 10 | X186: 10 | AF186: 10 | AH186: 79 | AI186: 6
A187: 185 | B187: CHARPONT | C187: BESSONEAU Lionel | D187: 0 | E187: HVS | AH187: 0 | AI187: 6
A188: 186 | B188: CHARPONT | C188: BOISSEAU Laurent | D188: 0 | E188: HVS | AH188: 0 | AI188: 6
A189: 187 | B189: CHARPONT | C189: BONHOMME Loic | D189: 0 | E189: HAS | AH189: 0 | AI189: 6
A190: 188 | B190: CHARPONT | C190: BOUCHERY Anne Marie | D190: 2 | E190: FVS | Q190: 10 | X190: 10 | AH190: 20 | AI190: 6
A191: 189 | B191: CHARPONT | C191: BOUCHERY Michel | D191: 2 | E191: HVS | Q191: 10 | X191: 10 | AH191: 20 | AI191: 6
A192: 190 | B192: CHARPONT | C192: BOUILLON Isabelle | D192: 3 | E192: FVD | U192: 10 | V192: 10 | AB192: 10 | AH192: 30 | AI192: 6
A193: 191 | B193: CHARPONT | C193: BOUVIER Carl | D193: 18 | E193: HVS | F193: 15 | G193: 10 | H193: 10 | I193: 10 | K193: 10 | M193: 12 | N193: 15 | T193: 10 | U193: 10 | V193: 10 | X193: 10 | Y193: 10 | Z193: 10 | AB193: 10 | AD193: 12 | AE193: 10 | AF193: 10 | AG193: 15 | AH193: 199 | AI193: 6
A194: 192 | B194: CHARPONT | C194: BRETON Gerard | D194: 3 | E194: HAS | X194: 10 | AB194: 10 | AD194: 10 | AH194: 30 | AI194: 6
A195: 193 | B195: CHARPONT | C195: BRETON Timéo | D195: =COUNTIF(F195:AG195,">1") -> 3 | E195: HJS | X195: 10 | AB195: 10 | AD195: 10 | AH195: =SUM(F195:AG195) -> 30 | AI195: 6
A196: 194 | B196: CHARPONT | C196: BROSCRITTO Luigi | D196: 9 | E196: HVS | F196: 12 | H196: 10 | K196: 12 | Q196: 18 | T196: 10 | X196: 10 | AB196: 10 | AD196: 12 | AE196: 12 | AH196: 106 | AI196: 6
A197: 195 | B197: CHARPONT | C197: CASSAGNABERE Franck | D197: 8 | E197: HVS | H197: 10 | I197: 10 | K197: 10 | Q197: 15 | T197: 10 | V197: 10 | Z197: 12 | AD197: 10 | AH197: 87 | AI197: 6
A198: 196 | B198: CHARPONT | C198: CEULEMANS Cédric | D198: 19 | E198: HAS | G198: 10 | H198: 10 | K198: 30 | M198: 25 | N198: 10 | Q198: 10 | T198: 15 | U198: 10 | V198: 15 | W198: 12 | X198: 10 | Y198: 20 | Z198: 10 | AA198: 22 | AB198: 15 | AD198: 10 | AE198: 15 | AF198: 22 | AG198: 12 | AH198: 283 | AI198: 6
A199: 197 | B199: CHARPONT | C199: CHAMPAGNAT Jean Pierre | D199: 1 | E199: HV | I199: 10 | AH199: 10 | AI199: 6
A200: 198 | B200: CHARPONT | C200: COMPAIN Francois | D200: 15 | E200: HVS | G200: 10 | H200: 10 | I200: 10 | K200: 15 | N200: 10 | T200: 10 | X200: 10 | Y200: 10 | Z200: 10 | AB200: 10 | AC200: 10 | AD200: 10 | AE200: 10 | AF200: 12 | AG200: 15 | AH200: 162 | AI200: 6
... 444 more rows

Sheet Joueur
F1: Chuisnes | G1: B.O.C. | H1: Crécy | I1: Charpont | J1: Bonneval | K1: Luray | M1: Vichères | N1: Challet - Bailleau | P1: Cloyes | Q1: St G.M. | R1: Bonneval | S1: Yèvres | T1: St Eliph | U1: Blévy M | V1: Challet - B | W1: Cloyes | X1: Charpont | Y1: Chuisnes | Z1: Cheminots | AA1: Cheminots | AB1: B.O.C. | AC1: Ouarville | AD1: Luray | AE1: St G.M. | AF1: La Gauloise | AG1: Gas | AH1: TOTAL
B2: Club | C2: nom prénom | D2: concours nbs | E2: =NumCouleur(D2) ->  | F2: 2024-09-01 | G2: 2024-09-07 | H2: 2024-09-08 | I2: 2024-09-14 | J2: 2024-09-15 | K2: 21/09/2024 TRI | L2: 21/09/2024 DM | M2: 22/09/2024 QUA | N2: 28/09/2024 TRI | O2: 28/09/2024 DF | P2: 2024-09-29 | Q2: 2024-10-05 | R2: 2024-10-06 | S2: 2024-10-12 | T2: 2024-10-13 | U2: 2024-10-19 | V2: 2024-10-20 | W2: 2024-10-26 | X2: 2024-10-27 | Y2: 2024-11-02 | Z2: 2024-11-03 | AA2: 2024-11-09 | AB2: 2024-11-10 | AC2: 2024-11-16 | AD2: 2024-11-17 | AE2: 2024-11-23 | AF2: 2024-11-24 | AG2: 2024-11-30 | AH2: individuel
A3: 1 | B3: VICHERES | C3: BROZILLE Benoît | D3: =COUNTIF(F3:AG3,">1") -> 22 | E3: HAS | F3: 10 | H3: 22 | I3: 10 | L3: 18 | M3: 30 | N3: 20 | P3: 15 | R3: 15 | T3: 18 | U3: 15 | V3: 10 | W3: 15 | X3: 10 | Y3: 15 | Z3: 15 | AA3: 15 | AB3: 10 | AC3: 18 | AD3: 10 | AE3: 12 | AF3: 20 | AG3: 22 | AH3: =SUM(F3:AG3) -> 345
A4: 2 | B4: CRECY- COUVE | C4: LE HELLEY Marcel | D4: 19 | E4: HVS | F4: 10 | G4: 15 | H4: 15 | K4: 10 | M4: 10 | Q4: 22 | R4: 22 | T4: 10 | U4: 10 | V4: 10 | X4: 20 | Y4: 10 | Z4: 30 | AA4: 20 | AB4: 15 | AD4: 20 | AE4: 20 | AF4: 15 | AG4: 30 | AH4: 314
A5: 3 | B5: CRECY- COUVE | C5: COLOMBEL Jean François | D5: 15 | E5: HVD | G5: 15 | H5: 15 | I5: 25 | L5: 30 | N5: 25 | Q5: 15 | T5: 30 | V5: 25 | X5: 25 | Y5: 10 | Z5: 30 | AA5: 10 | AB5: 10 | AD5: 18 | AE5: 30 | AH5: 313
A6: 4 | B6: CRECY- COUVE | C6: BROU David | D6: 20 | E6: HAD | F6: 15 | G6: 15 | H6: 30 | K6: 15 | M6: 10 | N6: 15 | Q6: 10 | R6: 22 | T6: 10 | U6: 10 | V6: 10 | X6: 22 | Y6: 10 | Z6: 10 | AA6: 10 | AB6: 15 | AD6: 30 | AE6: 20 | AF6: 10 | AG6: 15 | AH6: 304
A7: 5 | B7: BLEVY MAILLEBOIS | C7: FREMONT Benoît | D7: 19 | E7: HVS | F7: 22 | G7: 20 | H7: 16 | I7: 30 | K7: 10 | N7: 10 | Q7: 20 | T7: 15 | U7: 10 | V7: 10 | Y7: 30 | Z7: 12 | AA7: 20 | AB7: 10 | AC7: 15 | AD7: 10 | AE7: 15 | AF7: 10 | AG7: 10 | AH7: 295
A8: 6 | B8: BLEVY MAILLEBOIS | C8: FREMONT Stéphane | D8: 19 | E8: HAS | F8: 22 | G8: 20 | H8: 16 | I8: 30 | K8: 10 | N8: 10 | Q8: 20 | T8: 15 | U8: 10 | V8: 10 | Y8: 30 | Z8: 12 | AA8: 20 | AB8: 10 | AC8: 15 | AD8: 10 | AE8: 15 | AF8: 10 | AG8: 10 | AH8: 295
A9: 7 | B9: LURAY | C9: POIRIER Philippe | D9: 19 | E9: HAS | F9: 15 | G9: 30 | H9: 10 | J9: 30 | K9: 12 | M9: 10 | P9: 15 | R9: 20 | T9: 15 | U9: 20 | V9: 10 | X9: 10 | Y9: 10 | AA9: 10 | AB9: 10 | AD9: 20 | AE9: 10 | AF9: 10 | AG9: 18 | AH9: 285
A10: 8 | B10: BOUGLAINVAL | C10: LE BRIS Fabrice | D10: 22 | E10: HVS | F10: 15 | G10: 18 | J10: 10 | K10: 15 | M10: 10 | N10: 10 | P10: 12 | Q10: 14 | T10: 10 | U10: 25 | V10: 10 | W10: 10 | X10: 10 | Y10: 10 | Z10: 10 | AA10: 10 | AB10: 12 | AC10: 20 | AD10: 22 | AE10: 10 | AF10: 10 | AG10: 10 | AH10: 283
A11: 9 | B11: CHARPONT | C11: CEULEMANS Cédric | D11: 19 | E11: HAS | G11: 10 | H11: 10 | K11: 30 | M11: 25 | N11: 10 | Q11: 10 | T11: 15 | U11: 10 | V11: 15 | W11: 12 | X11: 10 | Y11: 20 | Z11: 10 | AA11: 22 | AB11: 15 | AD11: 10 | AE11: 15 | AF11: 22 | AG11: 12 | AH11: 283
A12: 10 | B12: VICHERES | C12: GIRARD Laurent | D12: 18 | E12: HAS | F12: 10 | G12: 15 | H12: 22 | K12: 15 | M12: 30 | N12: 10 | R12: 10 | T12: 10 | U12: 20 | W12: 12 | X12: 10 | Y12: 18 | Z12: 10 | AA12: 15 | AB12: 12 | AD12: 10 | AE12: 12 | AG12: 22 | AH12: 263
A13: 11 | B13: CRECY- COUVE | C13: GOSNET Franck | D13: 14 | E13: HAD | G13: 15 | I13: 25 | K13: 20 | M13: 15 | N13: 25 | P13: 10 | Q13: 15 | T13: 30 | X13: 25 | AA13: 10 | AB13: 10 | AD13: 18 | AE13: 30 | AG13: 10 | AH13: 258
A14: 12 | B14: BOUGLAINVAL | C14: LOREILLER Bruno | D14: 18 | E14: HVD | F14: 10 | H14: 10 | I14: 10 | K14: 12 | M14: 16 | N14: 10 | Q14: 10 | T14: 15 | U14: 25 | V14: 12 | X14: 10 | Y14: 25 | AA14: 10 | AB14: 10 | AC14: 20 | AD14: 22 | AE14: 12 | AG14: 15 | AH14: 254
A15: 13 | B15: VICHERES | C15: LEBOSSE Brice | D15: 15 | E15: HAS | H15: 22 | M15: 10 | N15: 30 | P15: 15 | R15: 14 | T15: 20 | U15: 15 | W15: 15 | X15: 10 | Y15: 20 | Z15: 10 | AA15: 14 | AB15: 25 | AD15: 10 | AF15: 20 | AH15: 250
A16: 14 | B16: LURAY | C16: MARECHAL Maxime | D16: 18 | E16: HAS | F16: 10 | H16: 10 | I16: 10 | J16: 12 | K16: 10 | M16: 12 | N16: 15 | P16: 25 | R16: 20 | T16: 12 | U16: 20 | V16: 20 | W16: 18 | X16: 10 | Y16: 10 | Z16: 10 | AA16: 15 | AB16: 10 | AH16: 249
A17: 15 | B17: VICHERES | C17: PODWOJEWSKI Patrice | D17: 17 | E17: HVD | I17: 20 | M17: 22 | N17: 10 | P17: 20 | R17: 30 | T17: 10 | U17: 20 | W17: 12 | X17: 10 | Y17: 12 | Z17: 10 | AB17: 10 | AC17: 18 | AD17: 10 | AE17: 10 | AF17: 12 | AG17: 10 | AH17: 246
A18: 16 | B18: LURAY | C18: VALLEE Louis | D18: 17 | E18: HAS | F18: 15 | G18: 30 | H18: 10 | K18: 12 | M18: 10 | N18: 20 | P18: 10 | R18: 20 | T18: 15 | U18: 20 | V18: 10 | X18: 10 | Y18: 15 | Z18: 10 | AD18: 10 | AF18: 10 | AG18: 18 | AH18: 245
A19: 17 | B19: CRECY- COUVE | C19: LE MEUR Yoan | D19: 18 | E19: HAS | F19: 10 | G19: 15 | H19: 20 | I19: 10 | K19: 15 | N19: 15 | Q19: 22 | T19: 10 | U19: 10 | V19: 12 | X19: 12 | Y19: 10 | Z19: 10 | AA19: 10 | AB19: 15 | AD19: 20 | AF19: 10 | AG19: 15 | AH19: 241
A20: 18 | B20: LURAY | C20: BURSON Ghislaine | D20: 18 | E20: FAS | F20: 10 | H20: 12 | I20: 12 | J20: 15 | L20: 10 | M20: 12 | O20: 20 | P20: 15 | U20: 15 | V20: 20 | X20: 10 | Y20: 10 | Z20: 14 | AA20: 15 | AB20: 10 | AD20: 10 | AE20: 12 | AG20: 18 | AH20: 240
A21: 19 | B21: CRECY- COUVE | C21: TACHAT Bruno | D21: 16 | E21: HVD | G21: 15 | K21: 20 | M21: 12 | N21: 10 | P21: 10 | U21: 10 | V21: 10 | X21: 10 | Y21: 16 | Z21: 15 | AA21: 15 | AB21: 15 | AD21: 10 | AE21: 22 | AF21: 18 | AG21: 30 | AH21: 238
A22: 20 | B22: BOUGLAINVAL | C22: ALLOUIS Corentin | D22: 18 | E22: HAD | F22: 10 | G22: 15 | H22: 18 | I22: 10 | J22: 10 | K22: 15 | M22: 10 | N22: 10 | P22: 10 | Q22: 10 | R22: 18 | T22: 15 | X22: 10 | Z22: 20 | AC22: 20 | AD22: 10 | AE22: 10 | AF22: 12 | AH22: 233
A23: 21 | B23: SAINT GEORGES MOTEL | C23: POINÇON Stéphane | D23: 12 | E23: HA | I23: 12 | K23: 22 | Q23: 20 | V23: 18 | X23: 10 | Y23: 22 | Z23: 15 | AA23: 25 | AB23: 30 | AD23: 12 | AE23: 25 | AG23: 20 | AH23: 231
A24: 22 | B24: LURAY | C24: ROULEAU Jean-Charles | D24: 18 | E24: HVS | F24: 30 | G24: 12 | H24: 12 | I24: 12 | J24: 12 | K24: 10 | M24: 10 | N24: 12 | P24: 15 | T24: 10 | U24: 10 | X24: 15 | Y24: 15 | Z24: 10 | AB24: 10 | AD24: 10 | AE24: 10 | AG24: 14 | AH24: 229
A25: 23 | B25: VICHERES | C25: SAGOT Didier | D25: 17 | E25: HVS | F25: 18 | H25: 12 | I25: 10 | J25: 18 | N25: 10 | P25: 10 | R25: 30 | T25: 20 | V25: 10 | W25: 12 | X25: 10 | Y25: 12 | Z25: 10 | AA25: 10 | AB25: 10 | AD25: 10 | AG25: 15 | AH25: 227
A26: 24 | B26: LURAY | C26: LIGAVAN Karine | D26: 16 | E26: FAS | F26: 10 | H26: 12 | I26: 10 | J26: 30 | K26: 10 | M26: 20 | O26: 20 | P26: 10 | R26: 15 | T26: 12 | U26: 15 | V26: 10 | W26: 10 | Z26: 14 | AA26: 12 | AB26: 10 | AH26: 220
A27: 25 | B27: CRECY- COUVE | C27: PIREAULT Christian | D27: 14 | E27: HVD | F27: 15 | H27: 15 | M27: 12 | N27: 10 | T27: 12 | U27: 10 | X27: 20 | Y27: 16 | Z27: 10 | AA27: 15 | AB27: 15 | AD27: 16 | AE27: 22 | AG27: 30 | AH27: 218
A28: 26 | B28: CHARPONT | C28: DELAMARE Hervé | D28: 19 | E28: HVD | F28: 10 | K28: 10 | M28: 10 | N28: 15 | Q28: 10 | R28: 10 | T28: 10 | U28: 12 | V28: 12 | W28: 12 | X28: 10 | Z28: 10 | AA28: 10 | AB28: 10 | AC28: 15 | AD28: 12 | AE28: 10 | AF28: 14 | AG28: 10 | AH28: 212
A29: 27 | B29: LURAY | C29: BURSON Denis | D29: 15 | E29: HVS | F29: 10 | G29: 10 | H29: 10 | I29: 10 | J29: 30 | K29: 10 | M29: 20 | N29: 15 | P29: 20 | U29: 10 | AA29: 15 | AB29: 10 | AD29: 10 | AE29: 18 | AG29: 10 | AH29: 208
A30: 28 | B30: CHARPONT | C30: JOSSE Marcel | D30: 18 | E30: HVS | G30: 10 | H30: 12 | I30: 10 | J30: 10 | K30: 15 | M30: 18 | T30: 10 | U30: 12 | X30: 10 | Y30: 10 | Z30: 10 | AA30: 10 | AB30: 10 | AC30: 15 | AD30: 10 | AE30: 12 | AF30: 10 | AG30: 10 | AH30: 204
A31: 29 | B31: CRECY- COUVE | C31: GASSE MARGAT Jacky | D31: 13 | E31: HVD | I31: 15 | K31: 20 | N31: 10 | U31: 10 | X31: 22 | Y31: 15 | Z31: 15 | AA31: 15 | AB31: 15 | AD31: 25 | AE31: 20 | AF31: 10 | AG31: 12 | AH31: 204
A32: 30 | B32: CHARPONT | C32: BOUVIER Carl | D32: 18 | E32: HVS | F32: 15 | G32: 10 | H32: 10 | I32: 10 | K32: 10 | M32: 12 | N32: 15 | T32: 10 | U32: 10 | V32: 10 | X32: 10 | Y32: 10 | Z32: 10 | AB32: 10 | AD32: 12 | AE32: 10 | AF32: 10 | AG32: 15 | AH32: 199
A33: 31 | B33: CHARPONT | C33: JOSSE Marie Helene | D33: 17 | E33: FVS | G33: 16 | H33: 10 | I33: 10 | J33: 10 | L33: 16 | M33: 10 | U33: 10 | X33: 10 | Y33: 10 | Z33: 10 | AA33: 22 | AB33: 10 | AC33: 10 | AD33: 10 | AE33: 15 | AF33: 10 | AG33: 10 | AH33: 199
A34: 32 | B34: BOUGLAINVAL | C34: ALLOUIS Stéphane | D34: 14 | E34: HVS | F34: 20 | G34: 18 | I34: 12 | K34: 15 | M34: 10 | N34: 10 | T34: 15 | X34: 10 | Z34: 10 | AB34: 12 | AC34: 20 | AD34: 22 | AE34: 14 | AF34: 10 | AH34: 198
A35: 33 | B35: LURAY | C35: MARCHIORI Joel | D35: 16 | E35: HVS | F35: 30 | G35: 10 | H35: 10 | I35: 15 | J35: 10 | K35: 12 | M35: 10 | N35: 12 | P35: 15 | Q35: 10 | U35: 10 | X35: 10 | Y35: 12 | Z35: 10 | AD35: 10 | AG35: 12 | AH35: 198
A36: 34 | B36: CHARPONT | C36: LAUVRAY sébastien | D36: 18 | E36: HAS | F36: 15 | G36: 14 | H36: 10 | I36: 10 | L36: 16 | M36: 10 | N36: 10 | T36: 10 | U36: 10 | V36: 10 | X36: 10 | Y36: 10 | AA36: 10 | AB36: 10 | AC36: 10 | AD36: 12 | AE36: 10 | AF36: 10 | AH36: 197
A37: 35 | B37: LURAY | C37: LIGAVAN Philippe | D37: 14 | E37: HVD | F37: 10 | G37: 10 | H37: 15 | I37: 10 | J37: 15 | M37: 20 | P37: 20 | Q37: 15 | R37: 15 | T37: 25 | W37: 10 | Y37: 10 | AD37: 10 | AE37: 12 | AH37: 197
A38: 36 | B38: BOUGLAINVAL | C38: MARTIN Gérard | D38: 16 | E38: HVD | F38: 20 | G38: 12 | J38: 10 | K38: 10 | M38: 10 | N38: 10 | P38: 10 | U38: 15 | V38: 14 | X38: 10 | Z38: 20 | AB38: 10 | AC38: 15 | AD38: 10 | AF38: 10 | AG38: 10 | AH38: 196
A39: 37 | B39: BOULES CLUB CLOYSIEN | C39: MAURICE Marc | D39: 15 | E39: HVS | J39: 20 | M39: 12 | N39: 14 | P39: 12 | Q39: 10 | T39: 10 | U39: 22 | V39: 14 | W39: 22 | X39: 10 | Y39: 10 | Z39: 10 | AB39: 10 | AD39: 10 | AF39: 10 | AH39: 196
A40: 38 | B40: CRECY- COUVE | C40: LANOE Christophe | D40: 15 | E40: HVD | F40: 15 | G40: 15 | H40: 15 | I40: 10 | K40: 10 | M40: 15 | N40: 10 | P40: 15 | Q40: 10 | T40: 10 | X40: 10 | AB40: 15 | AD40: 15 | AF40: 15 | AG40: 15 | AH40: 195
A41: 39 | B41: VICHERES | C41: BRISSONNET Angelique | D41: 16 | E41: FAS | G41: 10 | H41: 10 | K41: 15 | M41: 10 | R41: 15 | T41: 10 | U41: 15 | W41: 12 | X41: 10 | Y41: 18 | Z41: 10 | AA41: 15 | AB41: 12 | AD41: 10 | AE41: 12 | AG41: 10 | AH41: 194
A42: 40 | B42: CHARPONT | C42: NICHOLAS Thierry | D42: 17 | E42: HVS | F42: 10 | G42: 10 | H42: 10 | I42: 10 | K42: 10 | M42: 18 | N42: 10 | U42: 10 | V42: 10 | X42: 15 | Y42: 20 | Z42: 10 | AB42: 10 | AD42: 10 | AE42: 10 | AF42: 10 | AG42: 10 | AH42: 193
A43: 41 | B43: LURAY | C43: PAPIN Jasmine | D43: 15 | E43: FVD | F43: 15 | G43: 10 | H43: 15 | I43: 10 | L43: 25 | M43: 10 | O43: 16 | P43: 10 | U43: 10 | X43: 18 | Y43: 12 | Z43: 10 | AB43: 10 | AD43: 10 | AG43: 10 | AH43: 191
A44: 42 | B44: VICHERES | C44: LETOURNEUR Christian | D44: 14 | E44: HVS | F44: 10 | H44: 15 | I44: 10 | J44: 15 | M44: 15 | N44: 15 | R44: 15 | T44: 12 | V44: 10 | W44: 20 | Y44: 15 | AB44: 10 | AF44: 12 | AG44: 15 | AH44: 189
A45: 43 | B45: LURAY | C45: SORTAIS Luc | D45: 15 | E45: HVS | F45: 15 | G45: 12 | I45: 10 | N45: 12 | Q45: 10 | T45: 10 | U45: 18 | V45: 10 | W45: 18 | X45: 12 | Y45: 10 | Z45: 10 | AA45: 12 | AD45: 15 | AE45: 10 | AH45: 184
A46: 44 | B46: CHARPONT | C46: TOULOUSE Louis | D46: 12 | E46: HAD | H46: 10 | K46: 30 | M46: 25 | T46: 15 | V46: 15 | W46: 15 | X46: 10 | Z46: 10 | AA46: 22 | AD46: 10 | AE46: 10 | AF46: 10 | AH46: 182
A47: 45 | B47: CHARPONT | C47: JEANNOT Lucie | D47: 15 | E47: FAS | G47: 10 | H47: 10 | L47: 14 | M47: 25 | O47: 15 | T47: 10 | U47: 10 | V47: 15 | X47: 10 | Y47: 10 | Z47: 10 | AB47: 10 | AE47: 12 | AF47: 10 | AG47: 10 | AH47: 181
A48: 46 | B48: BOULES CLUB CLOYSIEN | C48: PATEYRON Michel | D48: 15 | E48: HVS | J48: 20 | M48: 12 | P48: 12 | Q48: 10 | R48: 10 | T48: 10 | U48: 22 | V48: 14 | X48: 10 | Y48: 10 | Z48: 10 | AB48: 10 | AD48: 10 | AF48: 10 | AG48: 10 | AH48: 180
A49: 47 | B49: BOUGLAINVAL | C49: CHARTIER Bernard | D49: 15 | E49: HVS | G49: 25 | H49: 10 | I49: 12 | J49: 10 | N49: 10 | Q49: 12 | U49: 10 | W49: 10 | X49: 10 | Y49: 10 | Z49: 10 | AB49: 10 | AC49: 15 | AE49: 14 | AF49: 10 | AH49: 178
A50: 48 | B50: BOUGLAINVAL | C50: COUELLAUD Walter | D50: 16 | E50: HAS | G50: 10 | I50: 10 | J50: 10 | K50: 10 | M50: 10 | N50: 10 | P50: 10 | Q50: 10 | T50: 10 | V50: 10 | W50: 10 | X50: 10 | Y50: 25 | AD50: 10 | AE50: 10 | AF50: 12 | AH50: 177
A51: 49 | B51: LURAY | C51: BOUDVIN Jérome | D51: 16 | E51: HAS | F51: 10 | G51: 12 | H51: 10 | I51: 10 | L51: 10 | N51: 10 | Q51: 10 | T51: 10 | U51: 10 | V51: 20 | X51: 15 | Z51: 10 | AA51: 10 | AB51: 10 | AD51: 10 | AF51: 10 | AH51: 177
A52: 50 | B52: BOUGLAINVAL | C52: MARTIN Nadine | D52: 15 | E52: FVD | F52: 10 | G52: 10 | J52: 10 | K52: 10 | M52: 10 | O52: 15 | P52: 10 | U52: 15 | X52: 10 | Z52: 20 | AB52: 10 | AC52: 15 | AD52: 10 | AF52: 10 | AG52: 10 | AH52: 175
A53: 51 | B53: CHARPONT | C53: ROUSSEAU Patrick | D53: 13 | E53: HVS | G53: 12 | I53: 15 | J53: 20 | N53: 16 | P53: 10 | X53: 10 | Y53: 10 | Z53: 15 | AA53: 15 | AB53: 10 | AD53: 15 | AE53: 15 | AF53: 12 | AH53: 175
A54: 52 | B54: LURAY | C54: GLIZE Elisabheth | D54: 13 | E54: FVD | H54: 15 | I54: 10 | O54: 18 | P54: 10 | T54: 10 | U54: 10 | X54: 10 | Y54: 12 | Z54: 14 | AA54: 30 | AB54: 10 | AD54: 10 | AG54: 14 | AH54: 173
A55: 53 | B55: VICHERES | C55: ESCULIER Christian | D55: 12 | E55: HVS | F55: 10 | H55: 12 | I55: 20 | M55: 15 | N55: 30 | P55: 10 | T55: 10 | V55: 10 | Y55: 18 | Z55: 15 | AB55: 12 | AD55: 10 | AH55: 172
A56: 54 | B56: CRECY- COUVE | C56: LE HELLEY Kevin | D56: 12 | E56: HAS | F56: 10 | K56: 14 | Q56: 10 | R56: 22 | T56: 10 | V56: 12 | X56: 12 | Y56: 10 | Z56: 10 | AA56: 20 | AD56: 30 | AF56: 10 | AH56: 170
A57: 55 | B57: BLEVY MAILLEBOIS | C57: GREVIN Michel | D57: 16 | E57: HVS | G57: 10 | H57: 10 | I57: 10 | N57: 10 | Q57: 12 | T57: 10 | U57: 15 | V57: 10 | X57: 10 | Y57: 12 | Z57: 10 | AA57: 10 | AB57: 10 | AD57: 10 | AE57: 10 | AF57: 10 | AH57: 169
A58: 56 | B58: SAINT ELIPH | C58: LOMBARD Richard | D58: 15 | E58: HAD | F58: 12 | H58: 10 | I58: 10 | Q58: 10 | R58: 20 | T58: 10 | U58: 10 | V58: 12 | W58: 10 | X58: 10 | Z58: 10 | AB58: 10 | AC58: 12 | AD58: 10 | AF58: 12 | AH58: 168
A59: 57 | B59: CHARPONT | C59: DELAHAYE Mickael | D59: 13 | E59: HAS | F59: 15 | G59: 14 | I59: 10 | L59: 14 | N59: 10 | Q59: 15 | V59: 15 | X59: 10 | Y59: 20 | AB59: 10 | AD59: 10 | AE59: 12 | AG59: 12 | AH59: 167
A60: 58 | B60: CHARPONT | C60: PITOT Cédric | D60: 15 | E60: HAD | G60: 10 | H60: 10 | I60: 10 | L60: 10 | M60: 12 | V60: 15 | W60: 15 | X60: 10 | Y60: 10 | Z60: 10 | AB60: 15 | AD60: 10 | AE60: 10 | AF60: 10 | AG60: 10 | AH60: 167
A61: 59 | B61: SAINT ELIPH | C61: BOUJU Marion | D61: 14 | E61: FAS | F61: 10 | H61: 10 | I61: 10 | L61: 20 | P61: 12 | T61: 14 | U61: 10 | V61: 15 | W61: 15 | X61: 10 | Z61: 10 | AD61: 10 | AE61: 10 | AF61: 10 | AH61: 166
A62: 60 | B62: BOUGLAINVAL | C62: FABRY Emmanuel | D62: 10 | E62: HVS | G62: 25 | I62: 22 | N62: 10 | P62: 15 | T62: 15 | U62: 14 | X62: 14 | Y62: 15 | AA62: 10 | AG62: 25 | AH62: 165
A63: 61 | B63: BOULES CLUB CLOYSIEN | C63: GERARD Frederique | D63: 9 | E63: HAS | F63: 20 | J63: 22 | L63: 20 | N63: 10 | P63: 18 | T63: 22 | U63: 10 | W63: 30 | Y63: 12 | AH63: 164
A64: 62 | B64: CHALLET-BAILLEAU L'EVEQUE | C64: DEMONCAY Patrick | D64: 14 | E64: HVS | F64: 10 | G64: 10 | I64: 10 | L64: 15 | M64: 10 | N64: 10 | P64: 10 | Q64: 15 | V64: 10 | AB64: 14 | AC64: 12 | AD64: 12 | AE64: 16 | AG64: 10 | AH64: 164
A65: 63 | B65: CHARPONT | C65: LOYER Jean François | D65: 14 | E65: HVD | F65: 16 | I65: 10 | K65: 12 | N65: 15 | Q65: 10 | R65: 10 | T65: 10 | Y65: 10 | Z65: 15 | AA65: 10 | AB65: 10 | AD65: 12 | AE65: 10 | AF65: 14 | AH65: 164
A66: 64 | B66: BLEVY MAILLEBOIS | C66: VAZQUEZ Baptiste | D66: 11 | E66: HAS | G66: 20 | H66: 16 | K66: 10 | Q66: 20 | U66: 10 | V66: 10 | Y66: 30 | Z66: 12 | AC66: 15 | AD66: 10 | AG66: 10 | AH66: 163
A67: 65 | B67: BOULES CLUB CLOYSIEN | C67: HOUE Jean Pierre | D67: =COUNTIF(F67:AG67,">1") -> 11 | E67: HVS | J67: 20 | P67: 10 | Q67: 10 | U67: 22 | V67: 14 | W67: 22 | X67: 10 | AB67: 10 | AD67: 10 | AF67: 25 | AG67: 10 | AH67: =SUM(F67:AG67) -> 163
A68: 66 | B68: CHARPONT | C68: COMPAIN Francois | D68: 15 | E68: HVS | G68: 10 | H68: 10 | I68: 10 | K68: 15 | N68: 10 | T68: 10 | X68: 10 | Y68: 10 | Z68: 10 | AB68: 10 | AC68: 10 | AD68: 10 | AE68: 10 | AF68: 12 | AG68: 15 | AH68: 162
A69: 67 | B69: LURAY | C69: BAZEMONT Bruno | D69: 13 | E69: HAD | G69: 22 | H69: 10 | I69: 10 | N69: 10 | Q69: 10 | T69: 10 | U69: 10 | V69: 10 | X69: 12 | Z69: 22 | AD69: 10 | AE69: 10 | AG69: 15 | AH69: 161
A70: 68 | B70: BLEVY MAILLEBOIS | C70: FREMONT Denis | D70: 13 | E70: HVS | H70: 12 | I70: 10 | K70: 10 | N70: 10 | Q70: 16 | T70: 15 | X70: 10 | Y70: 10 | Z70: 10 | AA70: 10 | AD70: 15 | AE70: 10 | AG70: 20 | AH70: 158
A71: 69 | B71: CHARPONT | C71: FOSSE Emeline | D71: 15 | E71: FJS | G71: 12 | H71: 10 | I71: 10 | L71: 10 | M71: 12 | N71: 10 | Q71: 10 | T71: 10 | Y71: 10 | Z71: 12 | AB71: 10 | AD71: 12 | AE71: 10 | AF71: 10 | AG71: 10 | AH71: 158
A72: 70 | B72: LURAY | C72: FORET Christelle | D72: 13 | E72: FAS | F72: 15 | G72: 10 | I72: 10 | N72: 10 | Q72: 10 | T72: 15 | U72: 10 | V72: 10 | W72: 18 | Y72: 10 | AA72: 15 | AD72: 15 | AE72: 10 | AH72: 158
A73: 71 | B73: VICHERES | C73: LETOURNEUR Annick | D73: 12 | E73: FVS | F73: 10 | H73: 12 | I73: 10 | J73: 15 | M73: 10 | O73: 25 | R73: 10 | T73: 10 | V73: 10 | W73: 20 | Y73: 15 | AB73: 10 | AH73: 157
A74: 72 | B74: CRECY- COUVE | C74: LECONTE Sylvain | D74: 9 | E74: HAS | G74: 15 | H74: 30 | I74: 15 | M74: 10 | N74: 10 | X74: 20 | Y74: 15 | Z74: 10 | AE74: 30 | AH74: 155
A75: 73 | B75: SAINT ELIPH | C75: LOMBARD Roméo | D75: 11 | E75: HAS | N75: 22 | Q75: 10 | R75: 20 | T75: 20 | U75: 10 | V75: 15 | W75: 15 | X75: 10 | Y75: 10 | AA75: 10 | AC75: 12 | AH75: 154
A76: 74 | B76: BOUGLAINVAL | C76: CHALLE Sébastien | D76: 14 | E76: HAS | F76: 10 | G76: 10 | H76: 10 | I76: 14 | J76: 10 | K76: 10 | M76: 15 | P76: 12 | T76: 10 | V76: 12 | X76: 10 | AA76: 10 | AB76: 10 | AE76: 10 | AH76: 153
A77: 75 | B77: BOULES CLUB CLOYSIEN | C77: PEAUGER Christian | D77: 12 | E77: HVS | H77: 10 | J77: 10 | K77: 18 | N77: 10 | P77: 10 | R77: 15 | T77: 10 | U77: 10 | V77: 10 | X77: 30 | Y77: 10 | AB77: 10 | AH77: 153
A78: 76 | B78: CRECY- COUVE | C78: BAZIRE Cédric | D78: 7 | E78: HAD | F78: 25 | I78: 18 | N78: 25 | Q78: 15 | T78: 30 | Z78: 30 | AG78: 10 | AH78: 153
A79: 77 | B79: LURAY | C79: LE BRIERE Michel | D79: 12 | E79: HAD | G79: 22 | I79: 10 | K79: 12 | M79: 12 | Q79: 10 | T79: 10 | U79: 10 | V79: 10 | Z79: 22 | AD79: 10 | AE79: 10 | AG79: 15 | AH79: 153
A80: 78 | B80: BOUGLAINVAL | C80: ESLAN Pierre | D80: 13 | E80: HVD | I80: 10 | J80: 12 | K80: 10 | N80: 10 | T80: 15 | U80: 10 | W80: 10 | X80: 10 | AA80: 10 | AB80: 10 | AD80: 10 | AE80: 10 | AG80: 25 | AH80: 152
A81: 79 | B81: BOULES CLUB CLOYSIEN | C81: TRIAU Fabrice | D81: 9 | E81: HAS | F81: 20 | J81: 22 | N81: 10 | P81: 10 | T81: 10 | V81: 10 | X81: 30 | AB81: 10 | AC81: 30 | AH81: 152
A82: 80 | B82: LURAY | C82: DESESQUELLES Philippe | D82: 14 | E82: HVS | F82: 10 | G82: 10 | I82: 16 | J82: 10 | K82: 12 | M82: 10 | N82: 12 | U82: 10 | V82: 10 | X82: 10 | AB82: 10 | AD82: 10 | AE82: 10 | AG82: 12 | AH82: 152
A83: 81 | B83: CHALLET-BAILLEAU L'EVEQUE | C83: LATIMIER Pascal | D83: 14 | E83: HVS | F83: 10 | G83: 10 | H83: 12 | I83: 10 | K83: 10 | M83: 15 | N83: 10 | Q83: 10 | V83: 10 | Y83: 10 | AB83: 12 | AD83: 10 | AE83: 12 | AG83: 10 | AH83: 151
A84: 82 | B84: LA GAULOISE | C84: CABART Georgette | D84: 14 | E84: FVS | O84: 15 | P84: 10 | R84: 16 | T84: 10 | U84: 10 | V84: 10 | W84: 10 | X84: 10 | Y84: 10 | AA84: 10 | AB84: 10 | AC84: 10 | AF84: 10 | AG84: 10 | AH84: 151
A85: 83 | B85: BLEVY MAILLEBOIS | C85: GILLOT Moïse | D85: 12 | E85: HVS | H85: 12 | I85: 10 | K85: 10 | N85: 10 | Q85: 16 | T85: 15 | X85: 10 | Y85: 10 | Z85: 10 | AA85: 10 | AD85: 15 | AG85: 20 | AH85: 148
A86: 84 | B86: BLEVY MAILLEBOIS | C86: MAIA Christophe | D86: 14 | E86: HAS | H86: 12 | I86: 12 | K86: 10 | N86: 10 | Q86: 12 | T86: 10 | U86: 10 | X86: 10 | Y86: 10 | Z86: 10 | AA86: 10 | AD86: 12 | AE86: 10 | AG86: 10 | AH86: 148
A87: 85 | B87: BOUGLAINVAL | C87: GARGASSON Jacky | D87: 12 | E87: HVD | F87: 20 | G87: 12 | N87: 10 | P87: 10 | U87: 10 | V87: 14 | X87: 10 | Z87: 10 | AB87: 10 | AC87: 20 | AD87: 10 | AF87: 10 | AH87: 146
A88: 86 | B88: SAINT ELIPH | C88: COMTAMIN Jonathan | D88: 13 | E88: HAD | N88: 10 | R88: 20 | T88: 10 | U88: 10 | V88: 12 | W88: 10 | X88: 10 | Y88: 10 | Z88: 10 | AA88: 10 | AB88: 10 | AC88: 12 | AF88: 12 | AH88: 146
A89: 87 | B89: CHARPONT | C89: PITOT Didier | D89: 12 | E89: HVS | F89: 10 | H89: 10 | I89: 15 | J89: 20 | M89: 12 | N89: 16 | V89: 10 | X89: 10 | Y89: 10 | Z89: 10 | AB89: 10 | AF89: 10 | AH89: 143
A90: 88 | B90: CHARPONT | C90: PRESTVOINE Mickael | D90: 13 | E90: HAS | I90: 15 | P90: 10 | U90: 10 | V90: 10 | X90: 10 | Y90: 10 | Z90: 12 | AB90: 10 | AC90: 15 | AD90: 10 | AE90: 10 | AF90: 10 | AG90: 10 | AH90: 142
A91: 89 | B91: BOUGLAINVAL | C91: CAUSERET Gilles | D91: 12 | E91: HVD | I91: 10 | J91: 12 | K91: 10 | N91: 10 | P91: 10 | W91: 25 | X91: 10 | Y91: 10 | AA91: 10 | AB91: 12 | AE91: 10 | AF91: 12 | AH91: 141
A92: 90 | B92: BOUGLAINVAL | C92: DENEFF Guillaume | D92: 11 | E92: HAS | F92: 10 | G92: 15 | L92: 10 | M92: 15 | Q92: 12 | U92: 10 | V92: 22 | Y92: 10 | AB92: 10 | AE92: 12 | AG92: 15 | AH92: 141
A93: 91 | B93: LURAY | C93: PELTRIAUX Frédéric | D93: 11 | E93: HAS | F93: 12 | G93: 22 | H93: 10 | J93: 12 | K93: 12 | N93: 10 | Q93: 10 | U93: 10 | AB93: 18 | AD93: 10 | AG93: 15 | AH93: 141
A94: 92 | B94: BOUGLAINVAL | C94: MENAGER Jean Paul | D94: 12 | E94: HVD | G94: 20 | I94: 10 | N94: 12 | P94: 10 | V94: 14 | X94: 10 | Y94: 10 | Z94: 10 | AA94: 10 | AB94: 12 | AE94: 10 | AF94: 12 | AH94: 140
A95: 93 | B95: BOULES CLUB CLOYSIEN | C95: LALLIOT Gildas | D95: 9 | E95: HAS | F95: 20 | H95: 10 | J95: 12 | P95: 10 | R95: 15 | T95: 22 | V95: 10 | X95: 30 | AB95: 10 | AH95: 139
A96: 94 | B96: LURAY | C96: ROSSIGNOL Pascal | D96: 11 | E96: HVS | F96: 30 | G96: 12 | H96: 12 | N96: 10 | Q96: 10 | T96: 10 | U96: 10 | V96: 10 | X96: 15 | Z96: 10 | AD96: 10 | AH96: 139
A97: 95 | B97: CHARPONT | C97: PITOT Micheline | D97: 12 | E97: FVS | F97: 16 | H97: 10 | I97: 10 | J97: 10 | M97: 12 | O97: 15 | V97: 10 | X97: 10 | Y97: 10 | Z97: 15 | AB97: 10 | AF97: 10 | AH97: 138
A98: 96 | B98: CRECY- COUVE | C98: GERMAIN Stéphane | D98: 10 | E98: HAD | F98: 15 | I98: 15 | K98: 14 | M98: 10 | N98: 15 | Q98: 22 | R98: 12 | T98: 10 | X98: 10 | AB98: 15 | AH98: 138
A99: 97 | B99: BOUGLAINVAL | C99: GAUDEFROY Patrice | D99: 10 | E99: HVS | F99: 15 | G99: 20 | K99: 15 | N99: 10 | Q99: 10 | U99: 25 | Y99: 10 | AA99: 10 | AB99: 10 | AG99: 10 | AH99: 135
A100: 98 | B100: CHARPONT | C100: LE MANACH Pascal | D100: 12 | E100: HVD | F100: 10 | H100: 10 | I100: 10 | K100: 12 | M100: 10 | N100: 16 | Q100: 10 | R100: 10 | U100: 12 | V100: 10 | Z100: 15 | AB100: 10 | AH100: 135
A101: 99 | B101: CRECY- COUVE | C101: LECOMTE Alexandra | D101: 8 | E101: FAS | H101: 20 | L101: 30 | M101: 15 | Q101: 15 | U101: 10 | V101: 25 | X101: 10 | Y101: 10 | AH101: 135
A102: 100 | B102: CHARPONT | C102: PERRIN Cyril | D102: 10 | E102: HAD | F102: 14 | G102: 10 | K102: 30 | V102: 10 | X102: 10 | Y102: 10 | AA102: 15 | AE102: 10 | AF102: 15 | AG102: 10 | AH102: 134
A103: 101 | B103: CHALLET-BAILLEAU L'EVEQUE | C103: DEMONCAY Florence | D103: 10 | E103: FAS | F103: 10 | I103: 10 | L103: 15 | O103: 30 | P103: 10 | V103: 10 | AB103: 10 | AD103: 12 | AE103: 16 | AG103: 10 | AH103: 133
A104: 102 | B104: VICHERES | C104: GUILLOU Mayvis | D104: 7 | E104: HAS | H104: 25 | N104: 10 | R104: 25 | T104: 12 | X104: 15 | Z104: 25 | AB104: 20 | AH104: 132
A105: 103 | B105: VICHERES | C105: SURCIN Tanguy | D105: 7 | E105: HAS | H105: 25 | P105: 10 | R105: 25 | T105: 12 | X105: 15 | Z105: 25 | AB105: 20 | AH105: 132
A106: 104 | B106: CRECY- COUVE | C106: BEGAL William | D106: 10 | E106: HVS | H106: 10 | J106: 15 | M106: 20 | N106: 15 | T106: 10 | U106: 10 | V106: 15 | X106: 10 | AB106: 10 | AD106: 16 | AH106: 131
A107: 105 | B107: BOUGLAINVAL | C107: POLVE Jacques | D107: 11 | E107: HVD | F107: 10 | G107: 10 | K107: 10 | M107: 16 | T107: 10 | X107: 10 | Y107: 10 | AC107: 20 | AE107: 14 | AF107: 10 | AG107: 10 | AH107: 130
A108: 106 | B108: BOULES CLUB CLOYSIEN | C108: GAUGUIN Alain | D108: 9 | E108: HAS | N108: 10 | V108: 20 | W108: 20 | X108: 10 | Y108: 10 | Z108: 10 | AA108: 10 | AB108: 10 | AC108: 30 | AH108: 130
A109: 107 | B109: CHARPONT | C109: PITOT Wilfrid | D109: 9 | E109: HAS | G109: 10 | M109: 25 | T109: 15 | X109: 10 | Z109: 10 | AB109: 15 | AE109: 10 | AF109: 22 | AG109: 12 | AH109: 129
A110: 108 | B110: LURAY | C110: NICHAU Jonathan | D110: 8 | E110: HAS | I110: 20 | L110: 25 | N110: 12 | Q110: 10 | U110: 18 | Z110: 22 | AA110: 12 | AD110: 10 | AH110: 129
A111: 109 | B111: SAINT GEORGES MOTEL | C111: RANDRIANTAHINA Roger | D111: 9 | E111: HV | K111: 15 | N111: 10 | Q111: 12 | U111: 10 | X111: 15 | Z111: 15 | AB111: 22 | AD111: 15 | AE111: 15 | AH111: 129
A112: 110 | B112: CHARPONT | C112: PRIEUR Alain | D112: 12 | E112: HVS | F112: 10 | H112: 10 | I112: 10 | J112: 10 | M112: 10 | N112: 10 | P112: 10 | U112: 12 | V112: 10 | X112: 10 | Z112: 16 | AB112: 10 | AH112: 128
A113: 111 | B113: SAINT ELIPH | C113: HARDY Aurelien | D113: 9 | E113: HAS | F113: 12 | N113: 22 | P113: 14 | Q113: 10 | T113: 20 | U113: 10 | V113: 15 | W113: 15 | X113: 10 | AH113: 128
A114: 112 | B114: YEVRES | C114: LETERTRE Christian | D114: 9 | E114: HVS | M114: 15 | P114: 12 | R114: 12 | T114: 10 | W114: 12 | AA114: 10 | AB114: 15 | AC114: 22 | AF114: 20 | AH114: 128
A115: 113 | B115: VICHERES | C115: CHASSIN Jean-Paul | D115: 11 | E115: HAS | G115: 10 | H115: 14 | I115: 10 | N115: 15 | P115: 10 | R115: 10 | T115: 10 | W115: 16 | Z115: 10 | AB115: 10 | AF115: 12 | AH115: 127
A116: 114 | B116: BOUGLAINVAL | C116: HICGUET Anne-Claire | D116: 12 | E116: FAS | F116: 10 | G116: 10 | H116: 10 | I116: 14 | J116: 10 | P116: 10 | T116: 10 | V116: 12 | X116: 10 | AA116: 10 | AB116: 10 | AE116: 10 | AH116: 126
A117: 115 | B117: YEVRES | C117: CHEVALLIER Ludovic | D117: 8 | E117: HAS | M117: 15 | R117: 12 | T117: 10 | W117: 12 | AA117: 10 | AB117: 15 | AC117: 22 | AF117: 30 | AH117: 126
A118: 116 | B118: CRECY- COUVE | C118: HEBERT Ludovic | D118: 8 | E118: HAS | F118: 25 | G118: 15 | H118: 20 | K118: 25 | N118: 10 | U118: 10 | X118: 10 | AB118: 10 | AH118: 125
A119: 117 | B119: LURAY | C119: LARUE Franck | D119: 12 | E119: HVS | F119: 10 | I119: 10 | K119: 10 | N119: 10 | Q119: 10 | U119: 10 | X119: 10 | Z119: 10 | AA119: 15 | AB119: 10 | AD119: 10 | AG119: 10 | AH119: 125
A120: 118 | B120: VICHERES | C120: PROUST Julien | D120: 9 | E120: HAS | F120: 10 | G120: 15 | H120: 15 | I120: 10 | J120: 15 | K120: 15 | M120: 15 | N120: 20 | R120: 10 | AH120: 125
A121: 119 | B121: VICHERES | C121: EGGER Ludovic | D121: 7 | E121: HAD | H121: 15 | M121: 10 | N121: 30 | R121: 15 | W121: 10 | Y121: 20 | AB121: 25 | AH121: 125
A122: 120 | B122: BOULES CLUB CLOYSIEN | C122: TANCRE Catherine | D122: 11 | E122: FVS | H122: 10 | M122: 12 | N122: 10 | P122: 10 | R122: 10 | T122: 10 | V122: 10 | W122: 22 | X122: 10 | Y122: 10 | AB122: 10 | AH122: 124
A123: 121 | B123: BOULES CLUB CLOYSIEN | C123: TRIAU Lucas | D123: 9 | E123: HAS | J123: 10 | K123: 18 | P123: 16 | T123: 10 | V123: 10 | W123: 30 | X123: 10 | AB123: 10 | AD123: 10 | AH123: 124
A124: 122 | B124: CRECY- COUVE | C124: LECONTE Steven | D124: 8 | E124: HAD | I124: 15 | K124: 14 | Q124: 15 | V124: 25 | Y124: 15 | Z124: 10 | AB124: 10 | AD124: 20 | AH124: 124
A125: 123 | B125: BONNEVAL | C125: LACOSTE Phillippe | D125: 9 | E125: HVD | J125: 15 | P125: 10 | R125: 15 | U125: 10 | W125: 15 | Y125: 10 | AC125: 25 | AF125: 10 | AG125: 12 | AH125: 122
A126: 124 | B126: CHALLET-BAILLEAU L'EVEQUE | C126: DUMONT Isabelle | D126: 11 | E126: FVS | H126: 12 | I126: 10 | J126: 10 | M126: 15 | N126: 10 | Q126: 10 | T126: 10 | V126: 15 | Z126: 10 | AD126: 10 | AG126: 10 | AH126: 122
A127: 125 | B127: CRECY- COUVE | C127: LOPES Carlos | D127: 9 | E127: HAS | H127: 15 | M127: 12 | T127: 12 | V127: 10 | W127: 15 | X127: 10 | Z127: 15 | AB127: 15 | AF127: 18 | AH127: 122
A128: 126 | B128: BOUGLAINVAL | C128: GOLLION Stephane | D128: 10 | E128: HAS | G128: 10 | M128: 16 | P128: 10 | T128: 10 | V128: 10 | X128: 10 | Y128: 25 | AB128: 10 | AD128: 10 | AE128: 10 | AH128: 121
A129: 127 | B129: VICHERES | C129: SALOMON Dimitri | D129: 8 | E129: HAD | I129: 20 | M129: 22 | P129: 15 | R129: 14 | T129: 18 | Y129: 12 | Z129: 10 | AD129: 10 | AH129: 121
A130: 128 | B130: LURAY | C130: AZEVEDO Antonio | D130: 7 | E130: HVD | I130: 15 | K130: 10 | N130: 20 | Q130: 15 | T130: 25 | Y130: 15 | Z130: 20 | AH130: 120
A131: 129 | B131: CHARPONT | C131: RIBEIRO Manuel | D131: =COUNTIF(F131:AG131,">1") -> 10 | E131: HVS | F131: 12 | H131: 10 | I131: 10 | M131: 12 | N131: 10 | Q131: 18 | T131: 10 | X131: 15 | AB131: 10 | AE131: 12 | AH131: =SUM(F131:AG131) -> 119
A132: 130 | B132: SAINT GEORGES MOTEL | C132: RUELLE Dominique | D132: 9 | E132: HV | H132: 10 | Q132: 12 | U132: 12 | X132: 15 | Y132: 10 | Z132: 15 | AB132: 10 | AE132: 15 | AG132: 20 | AH132: 119
A133: 131 | B133: CHARPONT | C133: PALARIC Nathalie | D133: 10 | E133: FVS | I133: 10 | J133: 10 | M133: 18 | O133: 15 | U133: 10 | X133: 10 | Y133: 10 | Z133: 15 | AF133: 10 | AG133: 10 | AH133: 118
A134: 132 | B134: CHARPONT | C134: PRIEUR Laure | D134: 10 | E134: FVS | F134: 16 | H134: 10 | I134: 10 | M134: 10 | O134: 15 | P134: 10 | U134: 12 | X134: 15 | Z134: 10 | AB134: 10 | AH134: 118
A135: 133 | B135: CHUISNES | C135: DEPUSSAY Thierry | D135: 10 | E135: HVS | T135: 16 | U135: 15 | X135: 10 | Y135: 10 | Z135: 10 | AA135: 10 | AB135: 16 | AD135: 10 | AF135: 10 | AG135: 10 | AH135: 117
A136: 134 | B136: CRECY- COUVE | C136: CAMART Michel | D136: 8 | E136: HAS | F136: 15 | H136: 30 | M136: 10 | Q136: 10 | T136: 10 | U136: 10 | X136: 12 | AA136: 20 | AH136: 117
A137: 135 | B137: CRECY- COUVE | C137: GAUDIN Jean Marc | D137: 9 | E137: HVD | H137: 10 | I137: 10 | J137: 15 | M137: 20 | U137: 12 | V137: 10 | Z137: 15 | AB137: 10 | AD137: 15 | AH137: 117
A138: 136 | B138: CRECY- COUVE | C138: LAMY Laurent | D138: 9 | E138: HVS | F138: 15 | G138: 15 | H138: 20 | I138: 10 | M138: 10 | N138: 15 | P138: 10 | R138: 12 | X138: 10 | AH138: 117
A139: 137 | B139: BLEVY MAILLEBOIS | C139: MARTIN Eric | D139: 9 | E139: HVS | G139: 10 | H139: 10 | N139: 10 | Q139: 12 | T139: 12 | U139: 30 | V139: 10 | Y139: 12 | Z139: 10 | AH139: 116
A140: 138 | B140: SAINT GEORGES MOTEL | C140: ABDELESSELAMI Kader | D140: 8 | E140: HA | Q140: 20 | T140: 12 | V140: 18 | X140: 10 | Y140: 22 | Z140: 12 | AB140: 10 | AD140: 12 | AH140: 116
A141: 139 | B141: SAINT GEORGES MOTEL | C141: PLESSIS Emmanuel | D141: 8 | E141: HA | Q141: 20 | T141: 12 | V141: 15 | X141: 10 | Z141: 12 | AA141: 25 | AB141: 10 | AD141: 12 | AH141: 116
A142: 140 | B142: CRECY- COUVE | C142: ELIE Christine | D142: 9 | E142: FVD | I142: 15 | U142: 12 | V142: 10 | X142: 10 | Y142: 15 | Z142: 15 | AA142: 18 | AB142: 10 | AD142: 10 | AH142: 115
A143: 141 | B143: LURAY | C143: TRUBERT Jacky | D143: 7 | E143: HVD | K143: 10 | N143: 20 | Q143: 15 | T143: 25 | Y143: 15 | Z143: 20 | AB143: 10 | AH143: 115
A144: 142 | B144: VICHERES | C144: CAILLON Jérome | D144: 10 | E144: HAS | F144: 10 | G144: 10 | K144: 10 | M144: 10 | R144: 15 | T144: 10 | V144: 10 | X144: 15 | AC144: 15 | AF144: 10 | AH144: 115
A145: 143 | B145: BOUGLAINVAL | C145: MANIEZ Hugo | D145: 9 | E145: HAS | H145: 10 | I145: 10 | U145: 10 | W145: 25 | X145: 10 | Y145: 14 | AA145: 10 | AB145: 10 | AF145: 15 | AH145: 114
A146: 144 | B146: CHARPONT | C146: ONDO Jean-Hilaire | D146: 11 | E146: HVD | I146: 10 | K146: 10 | N146: 10 | T146: 10 | V146: 12 | X146: 10 | Z146: 12 | AA146: 10 | AB146: 10 | AD146: 10 | AE146: 10 | AH146: 114
A147: 145 | B147: LURAY | C147: GOSSE Amandine | D147: 9 | E147: FAD | F147: 15 | H147: 12 | K147: 12 | U147: 15 | X147: 10 | Z147: 10 | AA147: 10 | AD147: 20 | AE147: 10 | AH147: 114
A148: 146 | B148: LURAY | C148: MAZAS Pascal | D148: 11 | E148: HVD | F148: 10 | I148: 10 | K148: 10 | M148: 10 | N148: 10 | P148: 10 | U148: 10 | X148: 10 | Z148: 10 | AB148: 10 | AG148: 14 | AH148: 114
A149: 147 | B149: CRECY- COUVE | C149: BUCHET Gwendal | D149: 9 | E149: HJD | H149: 15 | N149: 10 | Q149: 10 | U149: 10 | X149: 20 | Y149: 16 | AA149: 10 | AB149: 10 | AG149: 12 | AH149: 113
A150: 148 | B150: LURAY | C150: GLIZE Joel | D150: 8 | E150: HVD | H150: 15 | I150: 16 | N150: 10 | T150: 10 | X150: 10 | AA150: 30 | AD150: 10 | AG150: 12 | AH150: 113
A151: 149 | B151: BOUGLAINVAL | C151: CRETON Michel | D151: 11 | E151: HVD | F151: 10 | G151: 10 | I151: 10 | J151: 12 | K151: 10 | Q151: 10 | V151: 10 | W151: 10 | X151: 10 | Y151: 10 | AB151: 10 | AH151: 112
A152: 150 | B152: BOUGLAINVAL | C152: CRETON Renée | D152: 11 | E152: FVD | F152: 10 | G152: 10 | I152: 10 | J152: 12 | K152: 10 | Q152: 10 | V152: 10 | W152: 10 | X152: 10 | Y152: 10 | AB152: 10 | AH152: 112
A153: 151 | B153: BOUGLAINVAL | C153: DENEFF Anne | D153: 10 | E153: FAS | F153: 10 | G153: 15 | L153: 10 | M153: 15 | Q153: 10 | U153: 10 | V153: 10 | Y153: 10 | AB153: 10 | AE153: 12 | AH153: 112
A154: 152 | B154: BOUGLAINVAL | C154: MEHANECHE Roger | D154: 11 | E154: HVS | F154: 10 | G154: 10 | I154: 12 | K154: 10 | V154: 10 | X154: 10 | Y154: 10 | Z154: 10 | AB154: 10 | AD154: 10 | AG154: 10 | AH154: 112
A155: 153 | B155: CHARPONT | C155: ROUSSEAU Marielle | D155: 11 | E155: FVS | G155: 12 | I155: 10 | N155: 10 | P155: 10 | X155: 10 | Y155: 10 | Z155: 10 | AA155: 10 | AB155: 10 | AD155: 10 | AF155: 10 | AH155: 112
A156: 154 | B156: CRECY- COUVE | C156: LE COINT Frédéric | D156: 9 | E156: HAD | F156: 22 | H156: 10 | I156: 10 | M156: 10 | N156: 15 | T156: 10 | U156: 10 | X156: 15 | AD156: 10 | AH156: 112
A157: 155 | B157: BOUGLAINVAL | C157: HERY Vincent | D157: 8 | E157: HVS | I157: 22 | J157: 10 | N157: 10 | P157: 15 | T157: 15 | X157: 14 | Y157: 15 | AD157: 10 | AH157: 111
A158: 156 | B158: SAINT GEORGES MOTEL | C158: NGAMBE Guy | D158: 8 | E158: HV | K158: 15 | N158: 10 | Q158: 12 | U158: 10 | V158: 12 | X158: 15 | AB158: 22 | AD158: 15 | AH158: 111
A159: 157 | B159: BOUGLAINVAL | C159: MANIEZ Grégory | D159: 9 | E159: HAS | F159: 15 | H159: 10 | N159: 10 | U159: 10 | Y159: 14 | AA159: 10 | AB159: 10 | AE159: 16 | AF159: 15 | AH159: 110
A160: 158 | B160: LURAY | C160: ROSSIGNOL Françoise | D160: 11 | E160: FVS | F160: 10 | G160: 10 | H160: 10 | N160: 10 | Q160: 10 | T160: 10 | U160: 10 | V160: 10 | W160: 10 | X160: 10 | Z160: 10 | AH160: 110
A161: 159 | B161: CHARPONT | C161: FAURE Christophe | D161: 9 | E161: HVS | G161: 16 | H161: 10 | I161: 10 | Q161: 18 | T161: 10 | U161: 12 | V161: 10 | X161: 10 | AG161: 12 | AH161: 108
A162: 160 | B162: CHEMINOTS | C162: HIRIEL Fabrice | D162: 8 | E162: HAS | F162: 10 | U162: 16 | V162: 30 | Y162: 12 | Z162: 10 | AA162: 10 | AB162: 10 | AG162: 10 | AH162: 108
A163: 161 | B163: CHEMINOTS | C163: MOREAU Maxime | D163: 8 | E163: HAS | J163: 10 | U163: 16 | V163: 30 | Y163: 12 | Z163: 10 | AB163: 10 | AF163: 10 | AG163: 10 | AH163: 108
A164: 162 | B164: CRECY- COUVE | C164: BEFFROY Daniel | D164: 9 | E164: HVD | F164: 10 | M164: 20 | U164: 12 | V164: 10 | Y164: 10 | Z164: 16 | AA164: 10 | AB164: 10 | AD164: 10 | AH164: 108
A165: 163 | B165: SAINT ELIPH | C165: GAGNEBIEN Boris | D165: 10 | E165: HAS | F165: 10 | H165: 10 | I165: 10 | P165: 12 | T165: 14 | X165: 12 | Z165: 10 | AD165: 10 | AF165: 10 | AG165: 10 | AH165: 108
A166: 164 | B166: BLEVY MAILLEBOIS | C166: BIDARD Philippe | D166: 10 | E166: HVS | T166: 12 | U166: 15 | V166: 10 | X166: 10 | Y166: 10 | Z166: 10 | AA166: 10 | AB166: 10 | AD166: 10 | AF166: 10 | AH166: 107
A167: 165 | B167: BONNEVAL | C167: BOUILLY Eric | D167: 8 | E167: HVS | J167: 15 | P167: 10 | U167: 10 | W167: 15 | Y167: 10 | AC167: 25 | AF167: 10 | AG167: 12 | AH167: 107
A168: 166 | B168: CHARPONT | C168: NOVEL Jean François | D168: 10 | E168: HVD | F168: 10 | I168: 10 | M168: 10 | R168: 10 | V168: 10 | X168: 10 | Z168: 15 | AB168: 10 | AD168: 10 | AG168: 12 | AH168: 107
A169: 167 | B169: CHUISNES | C169: BASTHISTE Kevin | D169: 10 | E169: HAS | T169: 10 | U169: 15 | V169: 10 | X169: 10 | Y169: 10 | Z169: 10 | AA169: 12 | AB169: 10 | AF169: 10 | AG169: 10 | AH169: 107
A170: 168 | B170: CHARPONT | C170: BROSCRITTO Luigi | D170: 9 | E170: HVS | F170: 12 | H170: 10 | K170: 12 | Q170: 18 | T170: 10 | X170: 10 | AB170: 10 | AD170: 12 | AE170: 12 | AH170: 106
A171: 169 | B171: CRECY- COUVE | C171: CANELAS David | D171: 8 | E171: HVD | J171: 15 | U171: 12 | V171: 15 | X171: 10 | Z171: 10 | AA171: 18 | AB171: 10 | AD171: 15 | AH171: 105
A172: 170 | B172: CRECY- COUVE | C172: LECONTE Luc | D172: 6 | E172: HVS | G172: 15 | H172: 20 | I172: 25 | N172: 15 | Q172: 15 | Y172: 15 | AH172: 105
A173: 171 | B173: VICHERES | C173: LEBACLE Sébastien | D173: 9 | E173: HAS | F173: 10 | I173: 10 | M173: 15 | N173: 10 | P173: 10 | T173: 20 | V173: 10 | X173: 10 | Z173: 10 | AH173: 105
A174: 172 | B174: VICHERES | C174: POIRIER Anthony | D174: 7 | E174: HAS | N174: 18 | P174: 22 | T174: 10 | U174: 15 | X174: 10 | Z174: 10 | AB174: 20 | AH174: 105
A175: 173 | B175: VICHERES | C175: SALOMON Carine | D175: 7 | E175: FAD | F175: 12 | I175: 10 | M175: 30 | P175: 10 | T175: 18 | Z175: 15 | AD175: 10 | AH175: 105
A176: 174 | B176: BOUGLAINVAL | C176: PENON Damien | D176: 7 | E176: HAS | G176: 25 | J176: 10 | N176: 10 | X176: 14 | AA176: 10 | AD176: 10 | AG176: 25 | AH176: 104
A177: 175 | B177: LURAY | C177: OVERMANN Guy | D177: 8 | E177: HVS | H177: 12 | I177: 12 | K177: 10 | Q177: 10 | U177: 10 | X177: 10 | AA177: 30 | AD177: 10 | AH177: 104
A178: 176 | B178: BOULES CLUB CLOYSIEN | C178: GERARD Marie-Laure | D178: 8 | E178: FAS | J178: 12 | K178: 10 | O178: 22 | P178: 10 | R178: 15 | T178: 12 | U178: 10 | Y178: 12 | AH178: 103
A179: 177 | B179: VICHERES | C179: BELT Alban | D179: 6 | E179: HAD | H179: 18 | M179: 30 | N179: 10 | T179: 10 | W179: 10 | AB179: 25 | AH179: 103
A180: 178 | B180: CHARPONT | C180: GUERZA Ylies | D180: 8 | E180: HAS | I180: 30 | K180: 10 | V180: 10 | Y180: 10 | AB180: 10 | AD180: 10 | AE180: 12 | AG180: 10 | AH180: 102
A181: 179 | B181: LURAY | C181: PERCHER Patrick | D181: 9 | E181: HVS | G181: 10 | I181: 10 | K181: 10 | M181: 20 | Q181: 10 | V181: 10 | X181: 10 | AA181: 12 | AD181: 10 | AH181: 102
A182: 180 | B182: VICHERES | C182: MENAGER Antoine | D182: 7 | E182: HAS | N182: 18 | P182: 22 | R182: 12 | T182: 10 | X182: 10 | Z182: 10 | AB182: 20 | AH182: 102
A183: 181 | B183: BLEVY MAILLEBOIS | C183: JURE Eric | D183: 7 | E183: HVS | N183: 10 | Q183: 16 | T183: 15 | X183: 10 | AD183: 15 | AE183: 15 | AG183: 20 | AH183: 101
A184: 182 | B184: BOULES CLUB CLOYSIEN | C184: ROLANDEAU Mehdi | D184: 5 | E184: HAS | J184: 25 | P184: 30 | X184: 10 | AB184: 10 | AF184: 25 | AH184: 100
A185: 183 | B185: CRECY- COUVE | C185: LHEMERY Mathieu | D185: 6 | E185: HAS | G185: 15 | H185: 20 | K185: 25 | N185: 10 | X185: 20 | AB185: 10 | AH185: 100
A186: 184 | B186: LURAY | C186: GUYON Thierry | D186: 7 | E186: HVS | G186: 10 | I186: 20 | L186: 22 | U186: 10 | X186: 18 | AD186: 10 | AG186: 10 | AH186: 100
A187: 185 | B187: VICHERES | C187: HEUZE Nans | D187: 7 | E187: HAS | N187: 18 | P187: 20 | R187: 12 | T187: 10 | X187: 10 | Z187: 10 | AB187: 20 | AH187: 100
A188: 186 | B188: VICHERES | C188: RIQUET André | D188: 9 | E188: HVS | F188: 10 | G188: 10 | M188: 10 | P188: 10 | R188: 14 | T188: 10 | W188: 16 | Z188: 10 | AB188: 10 | AH188: 100
A189: 187 | B189: LURAY | C189: MARECHAL Eric | D189: 7 | E189: HVS | H189: 10 | I189: 10 | J189: 15 | M189: 12 | P189: 25 | R189: 15 | T189: 12 | AH189: 99
A190: 188 | B190: VICHERES | C190: DORDOIGNE Jérome | D190: 7 | E190: HAS | F190: 12 | M190: 15 | R190: 30 | V190: 10 | W190: 12 | AB190: 10 | AD190: 10 | AH190: 99
A191: 189 | B191: LURAY | C191: NICHAU Gerard | D191: 8 | E191: HVD | I191: 20 | K191: 10 | N191: 12 | Q191: 10 | U191: 10 | Z191: 16 | AB191: 10 | AD191: 10 | AH191: 98
A192: 190 | B192: SAINT ELIPH | C192: LE BLANC Frédéric | D192: 8 | E192: HAD | L192: 20 | N192: 12 | T192: 14 | W192: 10 | X192: 12 | AD192: 10 | AE192: 10 | AG192: 10 | AH192: 98
A193: 191 | B193: VICHERES | C193: PODWOJEWSKI Murielle | D193: 8 | E193: FVS | I193: 10 | N193: 10 | T193: 10 | U193: 20 | Z193: 10 | AC193: 18 | AD193: 10 | AG193: 10 | AH193: 98
A194: 192 | B194: BOUGLAINVAL | C194: BOILLOD Sylvain | D194: 9 | E194: HVS | G194: 10 | K194: 12 | N194: 10 | Q194: 10 | U194: 15 | X194: 10 | Y194: 10 | AA194: 10 | AG194: 10 | AH194: 97
A195: 193 | B195: CRECY- COUVE | C195: COUTANCE Martine | D195: =COUNTIF(F195:AG195,">1") -> 8 | E195: FVD | F195: 10 | M195: 20 | U195: 12 | V195: 10 | Y195: 10 | Z195: 15 | AB195: 10 | AD195: 10 | AH195: =SUM(F195:AG195) -> 97
A196: 194 | B196: LURAY | C196: DUPONT Michel | D196: 9 | E196: HVS | F196: 10 | G196: 12 | I196: 10 | K196: 10 | Q196: 10 | T196: 15 | U196: 10 | X196: 10 | Z196: 10 | AH196: 97
A197: 195 | B197: SAINT GEORGES MOTEL | C197: PESQUEUX Olivier | D197: 5 | E197: HA | K197: 22 | V197: 18 | X197: 10 | Y197: 22 | AE197: 25 | AH197: 97
A198: 196 | B198: CRECY- COUVE | C198: DEMEGLIO Yves | D198: 7 | E198: HVD | F198: 10 | H198: 18 | I198: 18 | K198: 15 | N198: 10 | P198: 15 | Q198: 10 | AH198: 96
A199: 197 | B199: CRECY- COUVE | C199: FASSEUR Jean Michel | D199: 6 | E199: HVD | N199: 10 | X199: 25 | AA199: 10 | AD199: 18 | AE199: 22 | AG199: 10 | AH199: 95
A200: 198 | B200: CRECY- COUVE | C200: LE GARREC Mauricette | D200: 8 | E200: FVD | M200: 10 | O200: 12 | X200: 10 | Y200: 15 | Z200: 10 | AA200: 18 | AB200: 10 | AD200: 10 | AH200: 95
... 442 more rows

Sheet classement club
C1: points club | D1: nombre de licenciés club | E1: Index coul
A2: 1 | B2: Luray | C2: =SUMIF(Club!AI3:AI675,12,Club!AH3:AH675) -> 6,808 | D2: =COUNTIF(Club!AI3:AI675,12) -> 59 | E2: 47 | F2: =NumCouleur(#REF!) ->  | H2: Total de licenciés | I2: =SUM(D2:D19) -> 640
A3: 2 | B3: Charpont | C3: =SUMIF(Club!AI3:AI675,6,Club!AH3:AH675) -> 6,642 | D3: =COUNTIF(Club!AI3:AI675,6) -> 82 | E3: 50 | F3: =NumCouleur(B2) ->  | H3: Total de points | I3: =SUM(C2:C19) -> 47,688
A4: 3 | B4: Bouglainval | C4: =SUMIF(Club!AI3:AI675,4,Club!AH3:AH675) -> 5,857 | D4: =COUNTIF(Club!AI3:AI675,4) -> 62 | E4: 5 | F4: =NumCouleur(B4) -> 
A5: 4 | B5: Crécy Couvé | C5: =SUMIF(Club!AI3:AI675,9,Club!AH3:AH675) -> 5,835 | D5: =COUNTIF(Club!AI3:AI675,9) -> 48 | E5: 6 | F5: =NumCouleur(B5) -> 
A6: 5 | B6: Vichères | C6: =SUMIF(Club!AI3:AI675,15,Club!AH3:AH675) -> 5,096 | D6: =COUNTIF(Club!AI3:AI675,15) -> 46 | E6: 43 | F6: =NumCouleur(B6) -> 
A7: 6 | B7: Boules Club Cloysien | C7: =SUMIF(Club!AI3:AI675,17,Club!AH3:AH675) -> 2,822 | D7: =COUNTIF(Club!AI4:AI675,17) -> 35 | E7: 40 | F7: =NumCouleur(B7) -> 
A8: 7 | B8: St Georges Motel | C8: =SUMIF(Club!AI3:AI675,14,Club!AH3:AH675) -> 2,533 | D8: =COUNTIF(Club!AI3:AI675,14) -> 50 | E8: 14 | F8: =NumCouleur(B8) -> 
A9: 8 | B9: Blévy-Maillebois | C9: =SUMIF(Club!AI3:AI675,2,Club!AH3:AH675) -> 2,523 | D9: =COUNTIF(Club!AI3:AI675,2) -> 33 | E9: 45 | F9: =NumCouleur(B9) -> 
A10: 9 | B10: Challet Bailleau l'Evêque | C10: =SUMIF(Club!AI3:AI675,5,Club!AH3:AH675) -> 2,008 | D10: =COUNTIF(Club!AI3:AI675,5) -> 35 | E10: 48 | F10: =NumCouleur(B10) -> 
A11: 10 | B11: St Eliph | C11: =SUMIF(Club!AI3:AI675,13,Club!AH3:AH675) -> 1,566 | D11: =COUNTIF(Club!AI4:AI676,13) -> 26 | E11: 7 | F11: =NumCouleur(B11) -> 
A12: 11 | B12: La Gauloise | C12: =SUMIF(Club!AI3:AI675,11,Club!AH3:AH675) -> 1,468 | D12: =COUNTIF(Club!AI3:AI675,11) -> 23 | E12: 3 | F12: =NumCouleur(B12) -> 
A13: 12 | B13: Yèvres | C13: =SUMIF(Club!AI3:AI675,16,Club!AH3:AH675) -> 1,086 | D13: =COUNTIF(Club!AI3:AI675,16) -> 27 | E13: 33 | F13: =NumCouleur(B13) -> 
A14: 13 | B14: Gas | C14: =SUMIF(Club!AI3:AI675,10,Club!AH3:AH675) -> 1,040 | D14: =COUNTIF(Club!AI3:AI675,10) -> 23
A15: 14 | B15: Chuisnes | C15: =SUMIF(Club!AI3:AI675,8,Club!AH3:AH675) -> 957 | D15: =COUNTIF(Club!AI3:AI675,8) -> 22 | E15: 22 | F15: =NumCouleur(B15) -> 
A16: 15 | B16: Bonneval | C16: =SUMIF(Club!AI3:AI675,3,Club!AH3:AH675) -> 826 | D16: =COUNTIF(Club!AI3:AI675,3) -> 18 | E16: 19 | F16: =NumCouleur(B16) -> 
A17: 16 | B17: Cheminots | C17: =SUMIF(Club!AI3:AI675,7,Club!AH3:AH675) -> 474 | D17: =COUNTIF(Club!AI3:AI675,7) -> 41 | E17: 37 | F17: =NumCouleur(B17) -> 
A18: 17 | B18: Ouarville Pétanque | C18: =SUMIF(Club!AI4:AI676,18,Club!AH4:AH676) -> 147 | D18: =COUNTIF(Club!AI4:AI676,18) -> 10

Sheet Code couleur (hidden)
G1: 10
G2: 10
E3: =[1]!no_couleur(D3) ->  | G3: 12 | H3: =SUM(G1:G3) -> 32 | I3: 3 | J3: =H3*I3 -> 96
G4: 12 | J4: 0
B5: =NumCouleur(D5) ->  | G5: 10 | J5: 0
G6: 10 | J6: 0
G7: 10 | J7: 0
E8: =+'classement club'!#REF! ->  | G8: 10 | J8: 0
E9: =+'classement club'!C2 -> 6,808 | G9: 10 | J9: 0
E10: =+'classement club'!C4 -> 5,857 | G10: 25 | H10: =SUM(G4:G10) -> 87 | I10: 3 | J10: =H10*I10 -> 261
E11: =+'classement club'!C5 -> 5,835 | G11: 15 | J11: =H11*I11 -> 0
E12: =+'classement club'!C6 -> 5,096 | G12: 15 | J12: 0
E13: =+'classement club'!C7 -> 2,822 | G13: 10 | J13: 0
E14: =+'classement club'!C8 -> 2,533 | G14: 10 | J14: 0
E15: =+'classement club'!C9 -> 2,523 | G15: 10 | J15: 0
E16: =+'classement club'!C10 -> 2,008 | G16: 10 | J16: 0
E17: =+'classement club'!C11 -> 1,566 | G17: 20 | J17: 0
E18: =+'classement club'!C12 -> 1,468 | G18: 10 | J18: 0
E19: =+'classement club'!C13 -> 1,086 | G19: 20
E20: ='classement club'!C15 -> 957 | G20: 14 | H20: =SUM(G11:G20) -> 134 | I20: 3 | J20: =H20*I20 -> 402
E21: =+'classement club'!C16 -> 826 | G21: 16 | J21: =H21*I21 -> 0
E22: =+'classement club'!C17 -> 474 | G22: 10 | J22: 0
E23: ='classement club'!C18 -> 147 | G23: 10 | J23: 0
G24: 10 | J24: 0
G25: 15 | J25: 0
G26: 10 | J26: 0
E27: =SUM(E8:E23) ->  | F27: =F30+F29+F31 -> 51585 | G27: 15 | J27: 0
G28: 10 | J28: 0
F29: 50665 | G29: 10 | H29: =SUM(G21:G29) -> 106 | I29: 3 | J29: 318
F30: 920 | G30: 22
F31: 0 | G31: 12
G32: 15
F33: =F34*F35 -> 2211 | G33: 12
F34: 3 | G34: 12
F35: 737 | G35: 12
G36: 10
F37: =SUM(G1:G60) -> 687 | G37: 10
G38: 10
G39: 10
G40: 10
G41: 10
G42: 10
G43: 10
G44: 10
G45: 10
G46: 10
G47: 30
G48: 15
G49: 18
G50: 10
G51: 10
G52: 10
G53: 10
G54: 10
G55: 10
G56: 10
